{"text_format":"1","workbook":"xlsx","n_sheets":6,"sheets":["Bordro","Hesap","Bord","Banka","List","oeb"],"not_rendered":{"charts":0,"images":4,"macros":1,"external_links":0,"defined_names":6,"comments":0,"pivot_tables":0},"unopened":[],"bounds":{"document_bytes":16777216,"sheet_cells":100000,"rows_first":2000,"rows_last":500,"rows_between":2000,"halvings":0,"cell_chars":16384,"cell_head_chars":4096},"cells_cut":0,"cells_raw":0,"read":"whole","date_system":"1900"}

{"sheet":"Bordro","index":0,"n_rows":128,"n_cols":104,"rows_kept":128,"cut":false,"hidden":false,"merged":[[5,19,5,20],[2,25,2,27],[3,25,3,27],[2,21,2,24],[3,21,3,24],[4,25,4,27],[4,22,4,24],[5,21,5,22],[2,19,2,20],[3,19,3,20],[4,19,4,20],[5,31,6,31],[5,27,6,27],[5,28,6,28],[5,29,6,29],[5,30,6,30],[27,1,27,26],[5,1,5,2],[5,3,5,4],[5,8,6,8],[5,7,6,7],[5,5,6,5],[5,6,6,6],[5,11,5,12],[5,23,6,23],[5,9,6,9],[5,10,6,10],[5,25,5,26],[5,13,5,14],[5,15,5,16],[5,17,5,18],[5,24,6,24],[3,59,4,59],[3,58,4,58],[3,60,4,60],[3,61,4,61],[2,1,4,8],[2,9,2,11],[3,9,3,11],[4,9,4,11],[2,12,2,18],[3,12,3,18],[4,12,4,13],[4,14,4,18]]}
[]
[]
[null,"ÇEŞİTLİ ÖDEMELER BORDROSU",null,null,null,null,null,null,null,"Okul/Kurum Türü",null,null,"13.67-İl/İlçe Milli Eğitim Müdürlükleri",null,null,null,null,null,null,"Düzenleyen",null,"Ziya KILINÇ",null,null,null,"Şef",null,null,null,null,null,null,null,null,null,null,null,null,null,null,null,null,null,null,null,null,null,null,null,null,null,null,null,null,null,null,null,null,null,null,null,null,null,null,null,null,null,null,null,null,null,null,null,null,null,null,null,null,null,null,null,null,null,null,null,null,null,null,null,null,null,null,null,null,null,null,1,1]
[null,null,null,null,null,null,null,null,null,"Okul/Kurum Adı",null,null,"İlçe Milli Eğitim Müdürlüğü",null,null,null,null,null,null,"Onaylayan",null,"Abdurrahman BUCAK",null,null,null,"Şube Müdürü",null,null,null,null,null,null,null,null,null,null,null,null,null,null,null,null,null,null,null,null,null,null,null,null,null,null,null,null,null,null,null,null,"Yazdır",{"$f":"BJ6","v":1},{"$f":"SUM(BJ8:BJ27)","v":0},{"$f":"BH4+BI4","v":1},null,null,null,null,null,null,null,null,null,null,null,null,null,null,null,null,null,null,null,null,null,null,null,null,null,null,null,null,null,null,null,null,null,null,1,2]
[null,null,null,null,null,null,null,null,null,"Kurum Vergi/ IBAN No",null,null,8390532151,null,"TR450006701000000045782341",null,null,null,null,"Damga Vergisi",null,7.59,"Yazdır",null,null,"Bordro",null,null,null,null,null,null,null,null,null,null,null,null,null,null,null,null,null,null,null,null,null,null,null,null,null,null,null,null,null,null,null,null,null,null,null,null,null,null,null,null,null,null,null,null,null,null,null,null,null,null,null,null,null,null,null,null,null,null,null,null,null,null,null,null,null,null,null,null,null,null,1,3]
[null,"Ödemenin Ait\nOlduğu Dönem",null,"Ödeme Dönemine\nAit Katsayılar",null,"Adı Soyadı","Kimlik No","Unvanı","İBAN\nNumarası","Sendika Üye No\n(İkr. Ödenecekse)","Vergi Oranı","Drece\nKademe",null,"Yan Ödeme\nPuanı",null,"Ek Tazminat\nPuanı",null,"Ek Ödeme Puanı",null,"Toplu Söz.\nİkramiyesi",null,"Diğer Tazm.\nÖdemesi",null,"İlave Ödeme\n(375 KHK)","Aile\nYardımı","Çocuk\nYardımı",null,"Toplam\nTutar","Gelir\nVergisi","Damga\nVergisi","Kesinti\nToplamı","Ödenecek\nTutar",null,null,null,null,null,null,null,null,null,null,null,null,null,null,"K. Türü",{"$f":"IF(M3=\"\",0,1)","v":1},"K. Adı",{"$f":"IF(M4=\"\",0,1)","v":1},"Iban",{"$f":"IF(O5=\"\",0,1)","v":1},"Vergi No",{"$f":"IF(M5=\"\",0,1)","v":1},"Düzenleyen",{"$f":"IF(OR(V3=\"\",Z3=\"\"),0,1)","v":1},"Onaylayan",{"$f":"IF(OR(V4=\"\",V4=\"\"),0,1)","v":1},"Damga",{"$f":"IF(V5=\"\",0,1)","v":1},"Kontrol",{"$f":"IF((AV6+AX6+AZ6+BB6+BD6+BF6+BH6)=7,1,0)","v":1},null,null,null,null,null,null,null,null,null,null,null,null,null,null,null,null,null,null,null,null,null,null,null,null,null,null,null,null,null,null,null,null,null,null,1,4]
[null,"Ay","Yıl","Maaş\nKatsayısı","Yan Öd.\nKatsayısı",null,null,null,null,null,null,"Derece","Kademe","Ödenen\nGösterge","Ödenecek\nGösterge","Ödenen\nGösterge","Ödenecek\nGösterge","Ödenen\nGösterge","Ödenecek\nGösterge","Ödenen\nGösterge","Ödenecek\nGösterge","Ödenen\nGösterge","Ödenecek\nGösterge",null,null,"0-6 Yaş","7+ Yaş",null,null,null,null,null,null,null,null,null,null,null,null,null,null,null,null,null,null,null,"No","Ay","Yıl","Maaş","Y. Ödeme","Adı","Kimlik","Unvan","Iban","Sendika","Vergi","Derece","Kademe","Kayıt","Bilgi","Hesap",null,null,null,null,null,null,null,null,null,null,null,null,null,null,null,null,null,null,null,null,null,null,null,null,null,null,null,null,null,null,null,null,null,null,2,1,"✓","X",null,null,{"$f":"SUM(AF8:AF27)","v":0},{"$f":"\"CU\"&2&\":\"&\"CU\"&2","v":"CU2:CU2"}]
[null,null,null,null,null,null,null,null,null,null,null,null,null,null,null,null,null,null,null,null,null,null,null,null,null,null,null,{"$f":"Hesap!AA7","v":0},{"$f":"Hesap!AB7","v":0},{"$f":"Hesap!AC7","v":0},{"$f":"Hesap!AD7","v":0},{"$f":"Hesap!AE7","v":0},null,null,null,null,null,null,null,null,null,null,null,null,null,null,1,{"$f":"IF(B8=\"\",0,1)","v":0},{"$f":"IF(C8=\"\",0,1)","v":0},0,0,0,0,0,0,{"$f":"IF(SUM(T8:U8)=0,1,IF(J8=\"\",0,1))","v":1},0,0,0,{"$f":"IF(OR(AV8=0,AW8=0),0,1)","v":0},{"$f":"SUM(AV8:BG8)","v":1},{"$f":"IF(BI8=1,0,IF(BI8=12,0,1))","v":0},null,null,null,null,null,null,null,null,null,null,null,null,null,null,null,null,null,null,null,null,null,null,null,null,null,null,null,null,null,null,null,null,null,null,2,2,"S. No","Derece","Adet","Baş","Bit","Hedef"]
[null,null,null,null,null,null,null,null,null,null,null,null,null,null,null,null,null,null,null,null,null,null,null,null,null,null,null,{"$f":"Hesap!AA8","v":0},{"$f":"Hesap!AB8","v":0},{"$f":"Hesap!AC8","v":0},{"$f":"Hesap!AD8","v":0},{"$f":"Hesap!AE8","v":0},null,null,null,null,null,null,null,null,null,null,null,null,null,null,2,{"$f":"IF(B9=\"\",0,1)","v":0},{"$f":"IF(C9=\"\",0,1)","v":0},{"$f":"IF(D9=\"\",0,1)","v":0},{"$f":"IF(E9=\"\",0,1)","v":0},{"$f":"IF(F9=\"\",0,1)","v":0},{"$f":"IF(G9=\"\",0,1)","v":0},{"$f":"IF(H9=\"\",0,1)","v":0},{"$f":"IF(I9=\"\",0,1)","v":0},{"$f":"IF(SUM(T9:U9)=0,1,IF(J9=\"\",0,1))","v":1},{"$f":"IF(K9=\"\",0,1)","v":0},{"$f":"IF(L9=\"\",0,1)","v":0},{"$f":"IF(M9=\"\",0,1)","v":0},{"$f":"IF(OR(AV9=0,AW9=0),0,1)","v":0},{"$f":"SUM(AV9:BG9)","v":1},{"$f":"IF(BI9=1,0,IF(BI9=12,0,1))","v":0},null,null,null,null,null,null,null,null,null,null,null,null,null,null,null,null,null,null,null,null,null,null,null,null,null,null,null,null,null,null,null,null,null,null,2,3,1,{"$f":"L8","v":0},{"$f":"COUNTIF($CS$3:$CS$128,CV9)","v":0},{"$f":"IF(CV9=0,0,MATCH(CV9,$CS$3:$CS$128,)+2)","v":0},{"$f":"IF(CW9=0,0,CW9+CX9-1)","v":0},{"$f":"IF(CV9=0,$CZ$7,\"CT\"&CX9&\":\"&\"CT\"&CY9)","v":"CU2:CU2"}]
[null,null,null,null,null,null,null,null,null,null,null,null,null,null,null,null,null,null,null,null,null,null,null,null,null,null,null,{"$f":"Hesap!AA9","v":0},{"$f":"Hesap!AB9","v":0},{"$f":"Hesap!AC9","v":0},{"$f":"Hesap!AD9","v":0},{"$f":"Hesap!AE9","v":0},null,null,null,null,null,null,null,null,null,null,null,null,null,null,3,0,0,0,0,0,0,0,0,1,0,0,0,0,1,0,null,null,null,null,null,null,null,null,null,null,null,null,null,null,null,null,null,null,null,null,null,null,null,null,null,null,null,null,null,null,null,null,null,null,2,4,2,0,{"$f":"COUNTIF($CS$3:$CS$128,CV10)","v":0},{"$f":"IF(CV10=0,0,MATCH(CV10,$CS$3:$CS$128,)+2)","v":0},{"$f":"IF(CW10=0,0,CW10+CX10-1)","v":0},{"$f":"IF(CV10=0,$CZ$7,\"CT\"&CX10&\":\"&\"CT\"&CY10)","v":"CU2:CU2"}]
[null,null,null,null,null,null,null,null,null,null,null,null,null,null,null,null,null,null,null,null,null,null,null,null,null,null,null,{"$f":"Hesap!AA10","v":0},{"$f":"Hesap!AB10","v":0},{"$f":"Hesap!AC10","v":0},{"$f":"Hesap!AD10","v":0},{"$f":"Hesap!AE10","v":0},null,null,null,null,null,null,null,null,null,null,null,null,null,null,4,0,0,0,0,0,0,0,0,1,0,0,0,0,1,0,null,null,null,null,null,null,null,null,null,null,null,null,null,null,null,null,null,null,null,null,null,null,null,null,null,null,null,null,null,null,null,null,null,null,2,5,3,0,0,0,0,"CU2:CU2"]
[null,null,null,null,null,null,null,null,null,null,null,null,null,null,null,null,null,null,null,null,null,null,null,null,null,null,null,{"$f":"Hesap!AA11","v":0},{"$f":"Hesap!AB11","v":0},{"$f":"Hesap!AC11","v":0},{"$f":"Hesap!AD11","v":0},{"$f":"Hesap!AE11","v":0},null,null,null,null,null,null,null,null,null,null,null,null,null,null,5,0,0,0,0,0,0,0,0,1,0,0,0,0,1,0,null,null,null,null,null,null,null,null,null,null,null,null,null,null,null,null,null,null,null,null,null,null,null,null,null,null,null,null,null,null,null,null,null,null,2,6,4,0,0,0,0,"CU2:CU2"]
[null,null,null,null,null,null,null,null,null,null,null,null,null,null,null,null,null,null,null,null,null,null,null,null,null,null,null,{"$f":"Hesap!AA12","v":0},{"$f":"Hesap!AB12","v":0},{"$f":"Hesap!AC12","v":0},{"$f":"Hesap!AD12","v":0},{"$f":"Hesap!AE12","v":0},null,null,null,null,null,null,null,null,null,null,null,null,null,null,6,0,0,0,0,0,0,0,0,1,0,0,0,0,1,0,null,null,null,null,null,null,null,null,null,null,null,null,null,null,null,null,null,null,null,null,null,null,null,null,null,null,null,null,null,null,null,null,null,null,3,1,5,0,0,0,0,"CU2:CU2"]
[null,null,null,null,null,null,null,null,null,null,null,null,null,null,null,null,null,null,null,null,null,null,null,null,null,null,null,{"$f":"Hesap!AA13","v":0},{"$f":"Hesap!AB13","v":0},{"$f":"Hesap!AC13","v":0},{"$f":"Hesap!AD13","v":0},{"$f":"Hesap!AE13","v":0},null,null,null,null,null,null,null,null,null,null,null,null,null,null,7,0,0,0,0,0,0,0,0,1,0,0,0,0,1,0,null,null,null,null,null,null,null,null,null,null,null,null,null,null,null,null,null,null,null,null,null,null,null,null,null,null,null,null,null,null,null,null,null,null,3,2,6,0,0,0,0,"CU2:CU2"]
[null,null,null,null,null,null,null,null,null,null,null,null,null,null,null,null,null,null,null,null,null,null,null,null,null,null,null,{"$f":"Hesap!AA14","v":0},{"$f":"Hesap!AB14","v":0},{"$f":"Hesap!AC14","v":0},{"$f":"Hesap!AD14","v":0},{"$f":"Hesap!AE14","v":0},null,null,null,null,null,null,null,null,null,null,null,null,null,null,8,0,0,0,0,0,0,0,0,1,0,0,0,0,1,0,null,null,null,null,null,null,null,null,null,null,null,null,null,null,null,null,null,null,null,null,null,null,null,null,null,null,null,null,null,null,null,null,null,null,3,3,7,0,0,0,0,"CU2:CU2"]
[null,null,null,null,null,null,null,null,null,null,null,null,null,null,null,null,null,null,null,null,null,null,null,null,null,null,null,{"$f":"Hesap!AA15","v":0},{"$f":"Hesap!AB15","v":0},{"$f":"Hesap!AC15","v":0},{"$f":"Hesap!AD15","v":0},{"$f":"Hesap!AE15","v":0},null,null,null,null,null,null,null,null,null,null,null,null,null,null,9,0,0,0,0,0,0,0,0,1,0,0,0,0,1,0,null,null,null,null,null,null,null,null,null,null,null,null,null,null,null,null,null,null,null,null,null,null,null,null,null,null,null,null,null,null,null,null,null,null,3,4,8,0,0,0,0,"CU2:CU2"]
[null,null,null,null,null,null,null,null,null,null,null,null,null,null,null,null,null,null,null,null,null,null,null,null,null,null,null,{"$f":"Hesap!AA16","v":0},{"$f":"Hesap!AB16","v":0},{"$f":"Hesap!AC16","v":0},{"$f":"Hesap!AD16","v":0},{"$f":"Hesap!AE16","v":0},null,null,null,null,null,null,null,null,null,null,null,null,null,null,10,0,0,0,0,0,0,0,0,1,0,0,0,0,1,0,null,null,null,null,null,null,null,null,null,null,null,null,null,null,null,null,null,null,null,null,null,null,null,null,null,null,null,null,null,null,null,null,null,null,3,5,9,0,0,0,0,"CU2:CU2"]
[null,null,null,null,null,null,null,null,null,null,null,null,null,null,null,null,null,null,null,null,null,null,null,null,null,null,null,{"$f":"Hesap!AA17","v":0},{"$f":"Hesap!AB17","v":0},{"$f":"Hesap!AC17","v":0},{"$f":"Hesap!AD17","v":0},{"$f":"Hesap!AE17","v":0},null,null,null,null,null,null,null,null,null,null,null,null,null,null,11,0,0,0,0,0,0,0,0,1,0,0,0,0,1,0,null,null,null,null,null,null,null,null,null,null,null,null,null,null,null,null,null,null,null,null,null,null,null,null,null,null,null,null,null,null,null,null,null,null,3,6,10,0,0,0,0,"CU2:CU2"]
[null,null,null,null,null,null,null,null,null,null,null,null,null,null,null,null,null,null,null,null,null,null,null,null,null,null,null,{"$f":"Hesap!AA18","v":0},{"$f":"Hesap!AB18","v":0},{"$f":"Hesap!AC18","v":0},{"$f":"Hesap!AD18","v":0},{"$f":"Hesap!AE18","v":0},null,null,null,null,null,null,null,null,null,null,null,null,null,null,12,0,0,0,0,0,0,0,0,1,0,0,0,0,1,0,null,null,null,null,null,null,null,null,null,null,null,null,null,null,null,null,null,null,null,null,null,null,null,null,null,null,null,null,null,null,null,null,null,null,3,7,11,0,0,0,0,"CU2:CU2"]
[null,null,null,null,null,null,null,null,null,null,null,null,null,null,null,null,null,null,null,null,null,null,null,null,null,null,null,{"$f":"Hesap!AA19","v":0},{"$f":"Hesap!AB19","v":0},{"$f":"Hesap!AC19","v":0},{"$f":"Hesap!AD19","v":0},{"$f":"Hesap!AE19","v":0},null,null,null,null,null,null,null,null,null,null,null,null,null,null,13,0,0,0,0,0,0,0,0,1,0,0,0,0,1,0,null,null,null,null,null,null,null,null,null,null,null,null,null,null,null,null,null,null,null,null,null,null,null,null,null,null,null,null,null,null,null,null,null,null,3,8,12,0,0,0,0,"CU2:CU2"]
[null,null,null,null,null,null,null,null,null,null,null,null,null,null,null,null,null,null,null,null,null,null,null,null,null,null,null,{"$f":"Hesap!AA20","v":0},{"$f":"Hesap!AB20","v":0},{"$f":"Hesap!AC20","v":0},{"$f":"Hesap!AD20","v":0},{"$f":"Hesap!AE20","v":0},null,null,null,null,null,null,null,null,null,null,null,null,null,null,14,0,0,0,0,0,0,0,0,1,0,0,0,0,1,0,null,null,null,null,null,null,null,null,null,null,null,null,null,null,null,null,null,null,null,null,null,null,null,null,null,null,null,null,null,null,null,null,null,null,4,1,13,0,0,0,0,"CU2:CU2"]
[null,null,null,null,null,null,null,null,null,null,null,null,null,null,null,null,null,null,null,null,null,null,null,null,null,null,null,{"$f":"Hesap!AA21","v":0},{"$f":"Hesap!AB21","v":0},{"$f":"Hesap!AC21","v":0},{"$f":"Hesap!AD21","v":0},{"$f":"Hesap!AE21","v":0},null,null,null,null,null,null,null,null,null,null,null,null,null,null,15,0,0,0,0,0,0,0,0,1,0,0,0,0,1,0,null,null,null,null,null,null,null,null,null,null,null,null,null,null,null,null,null,null,null,null,null,null,null,null,null,null,null,null,null,null,null,null,null,null,4,2,14,0,0,0,0,"CU2:CU2"]
[null,null,null,null,null,null,null,null,null,null,null,null,null,null,null,null,null,null,null,null,null,null,null,null,null,null,null,{"$f":"Hesap!AA22","v":0},{"$f":"Hesap!AB22","v":0},{"$f":"Hesap!AC22","v":0},{"$f":"Hesap!AD22","v":0},{"$f":"Hesap!AE22","v":0},null,null,null,null,null,null,null,null,null,null,null,null,null,null,16,0,0,0,0,0,0,0,0,1,0,0,0,0,1,0,null,null,null,null,null,null,null,null,null,null,null,null,null,null,null,null,null,null,null,null,null,null,null,null,null,null,null,null,null,null,null,null,null,null,4,3,15,0,0,0,0,"CU2:CU2"]
[null,null,null,null,null,null,null,null,null,null,null,null,null,null,null,null,null,null,null,null,null,null,null,null,null,null,null,{"$f":"Hesap!AA23","v":0},{"$f":"Hesap!AB23","v":0},{"$f":"Hesap!AC23","v":0},{"$f":"Hesap!AD23","v":0},{"$f":"Hesap!AE23","v":0},null,null,null,null,null,null,null,null,null,null,null,null,null,null,17,0,0,0,0,0,0,0,0,1,0,0,0,0,1,0,null,null,null,null,null,null,null,null,null,null,null,null,null,null,null,null,null,null,null,null,null,null,null,null,null,null,null,null,null,null,null,null,null,null,4,4,16,0,0,0,0,"CU2:CU2"]
[null,null,null,null,null,null,null,null,null,null,null,null,null,null,null,null,null,null,null,null,null,null,null,null,null,null,null,{"$f":"Hesap!AA24","v":0},{"$f":"Hesap!AB24","v":0},{"$f":"Hesap!AC24","v":0},{"$f":"Hesap!AD24","v":0},{"$f":"Hesap!AE24","v":0},null,null,null,null,null,null,null,null,null,null,null,null,null,null,18,0,0,0,0,0,0,0,0,1,0,0,0,0,1,0,null,null,null,null,null,null,null,null,null,null,null,null,null,null,null,null,null,null,null,null,null,null,null,null,null,null,null,null,null,null,null,null,null,null,4,5,17,0,0,0,0,"CU2:CU2"]
[null,null,null,null,null,null,null,null,null,null,null,null,null,null,null,null,null,null,null,null,null,null,null,null,null,null,null,{"$f":"Hesap!AA25","v":0},{"$f":"Hesap!AB25","v":0},{"$f":"Hesap!AC25","v":0},{"$f":"Hesap!AD25","v":0},{"$f":"Hesap!AE25","v":0},null,null,null,null,null,null,null,null,null,null,null,null,null,null,19,0,0,0,0,0,0,0,0,1,0,0,0,0,1,0,null,null,null,null,null,null,null,null,null,null,null,null,null,null,null,null,null,null,null,null,null,null,null,null,null,null,null,null,null,null,null,null,null,null,4,6,18,0,0,0,0,"CU2:CU2"]
[null,null,null,null,null,null,null,null,null,null,null,null,null,null,null,null,null,null,null,null,null,null,null,null,null,null,null,{"$f":"Hesap!AA26","v":0},{"$f":"Hesap!AB26","v":0},{"$f":"Hesap!AC26","v":0},{"$f":"Hesap!AD26","v":0},{"$f":"Hesap!AE26","v":0},null,null,null,null,null,null,null,null,null,null,null,null,null,null,20,0,0,0,0,0,0,0,0,1,0,0,0,0,1,0,null,null,null,null,null,null,null,null,null,null,null,null,null,null,null,null,null,null,null,null,null,null,null,null,null,null,null,null,null,null,null,null,null,null,4,7,19,0,0,0,0,"CU2:CU2"]
[null,{"$f":"Bord!A27","v":"Müdürlüğümüz personeli/Personellerine ilgili ay/aylarda 0,00 TL. () tahakkuk ettirilmiştir. 15/04/2024"},null,null,null,null,null,null,null,null,null,null,null,null,null,null,null,null,null,null,null,null,null,null,null,null,null,{"$f":"Hesap!AA27","v":0},{"$f":"Hesap!AB27","v":0},{"$f":"Hesap!AC27","v":0},{"$f":"Hesap!AD27","v":0},{"$f":"Hesap!AE27","v":0},null,null,null,null,null,null,null,null,null,null,null,null,null,null,null,null,null,null,null,null,null,null,null,null,null,null,null,null,null,null,null,null,null,null,null,null,null,null,null,null,null,null,null,null,null,null,null,null,null,null,null,null,null,null,null,null,null,null,null,null,null,null,null,null,4,8,20,0,0,0,0,"CU2:CU2"]
[null,null,null,null,null,null,null,null,null,null,null,null,null,null,null,null,null,null,null,null,null,null,null,null,null,null,null,null,null,null,null,null,null,null,null,null,null,null,null,null,null,null,null,null,null,null,null,null,null,null,null,null,null,null,null,null,null,null,null,null,null,null,null,null,null,null,null,null,null,null,null,null,null,null,null,null,null,null,null,null,null,null,null,null,null,null,null,null,null,null,null,null,null,null,null,null,4,9]
[null,null,null,null,null,null,null,null,null,null,null,null,null,null,null,null,null,null,null,null,null,null,null,null,null,null,null,null,null,null,null,null,null,null,null,null,null,null,null,null,null,null,null,null,null,null,null,null,null,null,null,null,null,null,null,null,null,null,null,null,null,null,null,null,null,null,null,null,null,null,null,null,null,null,null,null,null,null,null,null,null,null,null,null,null,null,null,null,null,null,null,null,null,null,null,null,5,1]
[null,null,null,null,null,null,null,null,null,null,null,null,null,null,null,null,null,null,null,null,null,null,null,null,null,null,null,null,null,null,null,null,null,null,null,null,null,null,null,null,null,null,null,null,null,null,null,null,null,null,null,null,null,null,null,null,null,null,null,null,null,null,null,null,null,null,null,null,null,null,null,null,null,null,null,null,null,null,null,null,null,null,null,null,null,null,null,null,null,null,null,null,null,null,null,null,5,2]
[null,null,null,null,null,null,null,null,null,null,null,null,null,null,null,null,null,null,null,null,null,null,null,null,null,null,null,null,null,null,null,null,null,null,null,null,null,null,null,null,null,null,null,null,null,null,null,null,null,null,null,null,null,null,null,null,null,null,null,null,null,null,null,null,null,null,null,null,null,null,null,null,null,null,null,null,null,null,null,null,null,null,null,null,null,null,null,null,null,null,null,null,null,null,null,null,5,3]
[null,null,null,null,null,null,null,null,null,null,null,null,null,null,null,null,null,null,null,null,null,null,null,null,null,null,null,null,null,null,null,null,null,null,null,null,null,null,null,null,null,null,null,null,null,null,null,null,null,null,null,null,null,null,null,null,null,null,null,null,null,null,null,null,null,null,null,null,null,null,null,null,null,null,null,null,null,null,null,null,null,null,null,null,null,null,null,null,null,null,null,null,null,null,null,null,5,4]
[null,null,null,null,null,null,null,null,null,null,null,null,null,null,null,null,null,null,null,null,null,null,null,null,null,null,null,null,null,null,null,null,null,null,null,null,null,null,null,null,null,null,null,null,null,null,null,null,null,null,null,null,null,null,null,null,null,null,null,null,null,null,null,null,null,null,null,null,null,null,null,null,null,null,null,null,null,null,null,null,null,null,null,null,null,null,null,null,null,null,null,null,null,null,null,null,5,5]
[null,null,null,null,null,null,null,null,null,null,null,null,null,null,null,null,null,null,null,null,null,null,null,null,null,null,null,null,null,null,null,null,null,null,null,null,null,null,null,null,null,null,null,null,null,null,null,null,null,null,null,null,null,null,null,null,null,null,null,null,null,null,null,null,null,null,null,null,null,null,null,null,null,null,null,null,null,null,null,null,null,null,null,null,null,null,null,null,null,null,null,null,null,null,null,null,5,6]
[null,null,null,null,null,null,null,null,null,null,null,null,null,null,null,null,null,null,null,null,null,null,null,null,null,null,null,null,null,null,null,null,null,null,null,null,null,null,null,null,null,null,null,null,null,null,null,null,null,null,null,null,null,null,null,null,null,null,null,null,null,null,null,null,null,null,null,null,null,null,null,null,null,null,null,null,null,null,null,null,null,null,null,null,null,null,null,null,null,null,null,null,null,null,null,null,5,7]
[null,null,null,null,null,null,null,null,null,null,null,null,null,null,null,null,null,null,null,null,null,null,null,null,null,null,null,null,null,null,null,null,null,null,null,null,null,null,null,null,null,null,null,null,null,null,null,null,null,null,null,null,null,null,null,null,null,null,null,null,null,null,null,null,null,null,null,null,null,null,null,null,null,null,null,null,null,null,null,null,null,null,null,null,null,null,null,null,null,null,null,null,null,null,null,null,5,8]
[null,null,null,null,null,null,null,null,null,null,null,null,null,null,null,null,null,null,null,null,null,null,null,null,null,null,null,null,null,null,null,null,null,null,null,null,null,null,null,null,null,null,null,null,null,null,null,null,null,null,null,null,null,null,null,null,null,null,null,null,null,null,null,null,null,null,null,null,null,null,null,null,null,null,null,null,null,null,null,null,null,null,null,null,null,null,null,null,null,null,null,null,null,null,null,null,5,9]
[null,null,null,null,null,null,null,null,null,null,null,null,null,null,null,null,null,null,null,null,null,null,null,null,null,null,null,null,null,null,null,null,null,null,null,null,null,null,null,null,null,null,null,null,null,null,null,null,null,null,null,null,null,null,null,null,null,null,null,null,null,null,null,null,null,null,null,null,null,null,null,null,null,null,null,null,null,null,null,null,null,null,null,null,null,null,null,null,null,null,null,null,null,null,null,null,6,1]
[null,null,null,null,null,null,null,null,null,null,null,null,null,null,null,null,null,null,null,null,null,null,null,null,null,null,null,null,null,null,null,null,null,null,null,null,null,null,null,null,null,null,null,null,null,null,null,null,null,null,null,null,null,null,null,null,null,null,null,null,null,null,null,null,null,null,null,null,null,null,null,null,null,null,null,null,null,null,null,null,null,null,null,null,null,null,null,null,null,null,null,null,null,null,null,null,6,2]
[null,null,null,null,null,null,null,null,null,null,null,null,null,null,null,null,null,null,null,null,null,null,null,null,null,null,null,null,null,null,null,null,null,null,null,null,null,null,null,null,null,null,null,null,null,null,null,null,null,null,null,null,null,null,null,null,null,null,null,null,null,null,null,null,null,null,null,null,null,null,null,null,null,null,null,null,null,null,null,null,null,null,null,null,null,null,null,null,null,null,null,null,null,null,null,null,6,3]
[null,null,null,null,null,null,null,null,null,null,null,null,null,null,null,null,null,null,null,null,null,null,null,null,null,null,null,null,null,null,null,null,null,null,null,null,null,null,null,null,null,null,null,null,null,null,null,null,null,null,null,null,null,null,null,null,null,null,null,null,null,null,null,null,null,null,null,null,null,null,null,null,null,null,null,null,null,null,null,null,null,null,null,null,null,null,null,null,null,null,null,null,null,null,null,null,6,4]
[null,null,null,null,null,null,null,null,null,null,null,null,null,null,null,null,null,null,null,null,null,null,null,null,null,null,null,null,null,null,null,null,null,null,null,null,null,null,null,null,null,null,null,null,null,null,null,null,null,null,null,null,null,null,null,null,null,null,null,null,null,null,null,null,null,null,null,null,null,null,null,null,null,null,null,null,null,null,null,null,null,null,null,null,null,null,null,null,null,null,null,null,null,null,null,null,6,5]
[null,null,null,null,null,null,null,null,null,null,null,null,null,null,null,null,null,null,null,null,null,null,null,null,null,null,null,null,null,null,null,null,null,null,null,null,null,null,null,null,null,null,null,null,null,null,null,null,null,null,null,null,null,null,null,null,null,null,null,null,null,null,null,null,null,null,null,null,null,null,null,null,null,null,null,null,null,null,null,null,null,null,null,null,null,null,null,null,null,null,null,null,null,null,null,null,6,6]
[null,null,null,null,null,null,null,null,null,null,null,null,null,null,null,null,null,null,null,null,null,null,null,null,null,null,null,null,null,null,null,null,null,null,null,null,null,null,null,null,null,null,null,null,null,null,null,null,null,null,null,null,null,null,null,null,null,null,null,null,null,null,null,null,null,null,null,null,null,null,null,null,null,null,null,null,null,null,null,null,null,null,null,null,null,null,null,null,null,null,null,null,null,null,null,null,6,7]
[null,null,null,null,null,null,null,null,null,null,null,null,null,null,null,null,null,null,null,null,null,null,null,null,null,null,null,null,null,null,null,null,null,null,null,null,null,null,null,null,null,null,null,null,null,null,null,null,null,null,null,null,null,null,null,null,null,null,null,null,null,null,null,null,null,null,null,null,null,null,null,null,null,null,null,null,null,null,null,null,null,null,null,null,null,null,null,null,null,null,null,null,null,null,null,null,6,8]
[null,null,null,null,null,null,null,null,null,null,null,null,null,null,null,null,null,null,null,null,null,null,null,null,null,null,null,null,null,null,null,null,null,null,null,null,null,null,null,null,null,null,null,null,null,null,null,null,null,null,null,null,null,null,null,null,null,null,null,null,null,null,null,null,null,null,null,null,null,null,null,null,null,null,null,null,null,null,null,null,null,null,null,null,null,null,null,null,null,null,null,null,null,null,null,null,6,9]
[null,null,null,null,null,null,null,null,null,null,null,null,null,null,null,null,null,null,null,null,null,null,null,null,null,null,null,null,null,null,null,null,null,null,null,null,null,null,null,null,null,null,null,null,null,null,null,null,null,null,null,null,null,null,null,null,null,null,null,null,null,null,null,null,null,null,null,null,null,null,null,null,null,null,null,null,null,null,null,null,null,null,null,null,null,null,null,null,null,null,null,null,null,null,null,null,7,1]
[null,null,null,null,null,null,null,null,null,null,null,null,null,null,null,null,null,null,null,null,null,null,null,null,null,null,null,null,null,null,null,null,null,null,null,null,null,null,null,null,null,null,null,null,null,null,null,null,null,null,null,null,null,null,null,null,null,null,null,null,null,null,null,null,null,null,null,null,null,null,null,null,null,null,null,null,null,null,null,null,null,null,null,null,null,null,null,null,null,null,null,null,null,null,null,null,7,2]
[null,null,null,null,null,null,null,null,null,null,null,null,null,null,null,null,null,null,null,null,null,null,null,null,null,null,null,null,null,null,null,null,null,null,null,null,null,null,null,null,null,null,null,null,null,null,null,null,null,null,null,null,null,null,null,null,null,null,null,null,null,null,null,null,null,null,null,null,null,null,null,null,null,null,null,null,null,null,null,null,null,null,null,null,null,null,null,null,null,null,null,null,null,null,null,null,7,3]
[null,null,null,null,null,null,null,null,null,null,null,null,null,null,null,null,null,null,null,null,null,null,null,null,null,null,null,null,null,null,null,null,null,null,null,null,null,null,null,null,null,null,null,null,null,null,null,null,null,null,null,null,null,null,null,null,null,null,null,null,null,null,null,null,null,null,null,null,null,null,null,null,null,null,null,null,null,null,null,null,null,null,null,null,null,null,null,null,null,null,null,null,null,null,null,null,7,4]
[null,null,null,null,null,null,null,null,null,null,null,null,null,null,null,null,null,null,null,null,null,null,null,null,null,null,null,null,null,null,null,null,null,null,null,null,null,null,null,null,null,null,null,null,null,null,null,null,null,null,null,null,null,null,null,null,null,null,null,null,null,null,null,null,null,null,null,null,null,null,null,null,null,null,null,null,null,null,null,null,null,null,null,null,null,null,null,null,null,null,null,null,null,null,null,null,7,5]
[null,null,null,null,null,null,null,null,null,null,null,null,null,null,null,null,null,null,null,null,null,null,null,null,null,null,null,null,null,null,null,null,null,null,null,null,null,null,null,null,null,null,null,null,null,null,null,null,null,null,null,null,null,null,null,null,null,null,null,null,null,null,null,null,null,null,null,null,null,null,null,null,null,null,null,null,null,null,null,null,null,null,null,null,null,null,null,null,null,null,null,null,null,null,null,null,7,6]
[null,null,null,null,null,null,null,null,null,null,null,null,null,null,null,null,null,null,null,null,null,null,null,null,null,null,null,null,null,null,null,null,null,null,null,null,null,null,null,null,null,null,null,null,null,null,null,null,null,null,null,null,null,null,null,null,null,null,null,null,null,null,null,null,null,null,null,null,null,null,null,null,null,null,null,null,null,null,null,null,null,null,null,null,null,null,null,null,null,null,null,null,null,null,null,null,7,7]
[null,null,null,null,null,null,null,null,null,null,null,null,null,null,null,null,null,null,null,null,null,null,null,null,null,null,null,null,null,null,null,null,null,null,null,null,null,null,null,null,null,null,null,null,null,null,null,null,null,null,null,null,null,null,null,null,null,null,null,null,null,null,null,null,null,null,null,null,null,null,null,null,null,null,null,null,null,null,null,null,null,null,null,null,null,null,null,null,null,null,null,null,null,null,null,null,7,8]
[null,null,null,null,null,null,null,null,null,null,null,null,null,null,null,null,null,null,null,null,null,null,null,null,null,null,null,null,null,null,null,null,null,null,null,null,null,null,null,null,null,null,null,null,null,null,null,null,null,null,null,null,null,null,null,null,null,null,null,null,null,null,null,null,null,null,null,null,null,null,null,null,null,null,null,null,null,null,null,null,null,null,null,null,null,null,null,null,null,null,null,null,null,null,null,null,7,9]
[null,null,null,null,null,null,null,null,null,null,null,null,null,null,null,null,null,null,null,null,null,null,null,null,null,null,null,null,null,null,null,null,null,null,null,null,null,null,null,null,null,null,null,null,null,null,null,null,null,null,null,null,null,null,null,null,null,null,null,null,null,null,null,null,null,null,null,null,null,null,null,null,null,null,null,null,null,null,null,null,null,null,null,null,null,null,null,null,null,null,null,null,null,null,null,null,8,1]
[null,null,null,null,null,null,null,null,null,null,null,null,null,null,null,null,null,null,null,null,null,null,null,null,null,null,null,null,null,null,null,null,null,null,null,null,null,null,null,null,null,null,null,null,null,null,null,null,null,null,null,null,null,null,null,null,null,null,null,null,null,null,null,null,null,null,null,null,null,null,null,null,null,null,null,null,null,null,null,null,null,null,null,null,null,null,null,null,null,null,null,null,null,null,null,null,8,2]
[null,null,null,null,null,null,null,null,null,null,null,null,null,null,null,null,null,null,null,null,null,null,null,null,null,null,null,null,null,null,null,null,null,null,null,null,null,null,null,null,null,null,null,null,null,null,null,null,null,null,null,null,null,null,null,null,null,null,null,null,null,null,null,null,null,null,null,null,null,null,null,null,null,null,null,null,null,null,null,null,null,null,null,null,null,null,null,null,null,null,null,null,null,null,null,null,8,3]
[null,null,null,null,null,null,null,null,null,null,null,null,null,null,null,null,null,null,null,null,null,null,null,null,null,null,null,null,null,null,null,null,null,null,null,null,null,null,null,null,null,null,null,null,null,null,null,null,null,null,null,null,null,null,null,null,null,null,null,null,null,null,null,null,null,null,null,null,null,null,null,null,null,null,null,null,null,null,null,null,null,null,null,null,null,null,null,null,null,null,null,null,null,null,null,null,8,4]
[null,null,null,null,null,null,null,null,null,null,null,null,null,null,null,null,null,null,null,null,null,null,null,null,null,null,null,null,null,null,null,null,null,null,null,null,null,null,null,null,null,null,null,null,null,null,null,null,null,null,null,null,null,null,null,null,null,null,null,null,null,null,null,null,null,null,null,null,null,null,null,null,null,null,null,null,null,null,null,null,null,null,null,null,null,null,null,null,null,null,null,null,null,null,null,null,8,5]
[null,null,null,null,null,null,null,null,null,null,null,null,null,null,null,null,null,null,null,null,null,null,null,null,null,null,null,null,null,null,null,null,null,null,null,null,null,null,null,null,null,null,null,null,null,null,null,null,null,null,null,null,null,null,null,null,null,null,null,null,null,null,null,null,null,null,null,null,null,null,null,null,null,null,null,null,null,null,null,null,null,null,null,null,null,null,null,null,null,null,null,null,null,null,null,null,8,6]
[null,null,null,null,null,null,null,null,null,null,null,null,null,null,null,null,null,null,null,null,null,null,null,null,null,null,null,null,null,null,null,null,null,null,null,null,null,null,null,null,null,null,null,null,null,null,null,null,null,null,null,null,null,null,null,null,null,null,null,null,null,null,null,null,null,null,null,null,null,null,null,null,null,null,null,null,null,null,null,null,null,null,null,null,null,null,null,null,null,null,null,null,null,null,null,null,8,7]
[null,null,null,null,null,null,null,null,null,null,null,null,null,null,null,null,null,null,null,null,null,null,null,null,null,null,null,null,null,null,null,null,null,null,null,null,null,null,null,null,null,null,null,null,null,null,null,null,null,null,null,null,null,null,null,null,null,null,null,null,null,null,null,null,null,null,null,null,null,null,null,null,null,null,null,null,null,null,null,null,null,null,null,null,null,null,null,null,null,null,null,null,null,null,null,null,8,8]
[null,null,null,null,null,null,null,null,null,null,null,null,null,null,null,null,null,null,null,null,null,null,null,null,null,null,null,null,null,null,null,null,null,null,null,null,null,null,null,null,null,null,null,null,null,null,null,null,null,null,null,null,null,null,null,null,null,null,null,null,null,null,null,null,null,null,null,null,null,null,null,null,null,null,null,null,null,null,null,null,null,null,null,null,null,null,null,null,null,null,null,null,null,null,null,null,8,9]
[null,null,null,null,null,null,null,null,null,null,null,null,null,null,null,null,null,null,null,null,null,null,null,null,null,null,null,null,null,null,null,null,null,null,null,null,null,null,null,null,null,null,null,null,null,null,null,null,null,null,null,null,null,null,null,null,null,null,null,null,null,null,null,null,null,null,null,null,null,null,null,null,null,null,null,null,null,null,null,null,null,null,null,null,null,null,null,null,null,null,null,null,null,null,null,null,9,1]
[null,null,null,null,null,null,null,null,null,null,null,null,null,null,null,null,null,null,null,null,null,null,null,null,null,null,null,null,null,null,null,null,null,null,null,null,null,null,null,null,null,null,null,null,null,null,null,null,null,null,null,null,null,null,null,null,null,null,null,null,null,null,null,null,null,null,null,null,null,null,null,null,null,null,null,null,null,null,null,null,null,null,null,null,null,null,null,null,null,null,null,null,null,null,null,null,9,2]
[null,null,null,null,null,null,null,null,null,null,null,null,null,null,null,null,null,null,null,null,null,null,null,null,null,null,null,null,null,null,null,null,null,null,null,null,null,null,null,null,null,null,null,null,null,null,null,null,null,null,null,null,null,null,null,null,null,null,null,null,null,null,null,null,null,null,null,null,null,null,null,null,null,null,null,null,null,null,null,null,null,null,null,null,null,null,null,null,null,null,null,null,null,null,null,null,9,3]
[null,null,null,null,null,null,null,null,null,null,null,null,null,null,null,null,null,null,null,null,null,null,null,null,null,null,null,null,null,null,null,null,null,null,null,null,null,null,null,null,null,null,null,null,null,null,null,null,null,null,null,null,null,null,null,null,null,null,null,null,null,null,null,null,null,null,null,null,null,null,null,null,null,null,null,null,null,null,null,null,null,null,null,null,null,null,null,null,null,null,null,null,null,null,null,null,9,4]
[null,null,null,null,null,null,null,null,null,null,null,null,null,null,null,null,null,null,null,null,null,null,null,null,null,null,null,null,null,null,null,null,null,null,null,null,null,null,null,null,null,null,null,null,null,null,null,null,null,null,null,null,null,null,null,null,null,null,null,null,null,null,null,null,null,null,null,null,null,null,null,null,null,null,null,null,null,null,null,null,null,null,null,null,null,null,null,null,null,null,null,null,null,null,null,null,9,5]
[null,null,null,null,null,null,null,null,null,null,null,null,null,null,null,null,null,null,null,null,null,null,null,null,null,null,null,null,null,null,null,null,null,null,null,null,null,null,null,null,null,null,null,null,null,null,null,null,null,null,null,null,null,null,null,null,null,null,null,null,null,null,null,null,null,null,null,null,null,null,null,null,null,null,null,null,null,null,null,null,null,null,null,null,null,null,null,null,null,null,null,null,null,null,null,null,9,6]
[null,null,null,null,null,null,null,null,null,null,null,null,null,null,null,null,null,null,null,null,null,null,null,null,null,null,null,null,null,null,null,null,null,null,null,null,null,null,null,null,null,null,null,null,null,null,null,null,null,null,null,null,null,null,null,null,null,null,null,null,null,null,null,null,null,null,null,null,null,null,null,null,null,null,null,null,null,null,null,null,null,null,null,null,null,null,null,null,null,null,null,null,null,null,null,null,9,7]
[null,null,null,null,null,null,null,null,null,null,null,null,null,null,null,null,null,null,null,null,null,null,null,null,null,null,null,null,null,null,null,null,null,null,null,null,null,null,null,null,null,null,null,null,null,null,null,null,null,null,null,null,null,null,null,null,null,null,null,null,null,null,null,null,null,null,null,null,null,null,null,null,null,null,null,null,null,null,null,null,null,null,null,null,null,null,null,null,null,null,null,null,null,null,null,null,9,8]
[null,null,null,null,null,null,null,null,null,null,null,null,null,null,null,null,null,null,null,null,null,null,null,null,null,null,null,null,null,null,null,null,null,null,null,null,null,null,null,null,null,null,null,null,null,null,null,null,null,null,null,null,null,null,null,null,null,null,null,null,null,null,null,null,null,null,null,null,null,null,null,null,null,null,null,null,null,null,null,null,null,null,null,null,null,null,null,null,null,null,null,null,null,null,null,null,9,9]
[null,null,null,null,null,null,null,null,null,null,null,null,null,null,null,null,null,null,null,null,null,null,null,null,null,null,null,null,null,null,null,null,null,null,null,null,null,null,null,null,null,null,null,null,null,null,null,null,null,null,null,null,null,null,null,null,null,null,null,null,null,null,null,null,null,null,null,null,null,null,null,null,null,null,null,null,null,null,null,null,null,null,null,null,null,null,null,null,null,null,null,null,null,null,null,null,10,1]
[null,null,null,null,null,null,null,null,null,null,null,null,null,null,null,null,null,null,null,null,null,null,null,null,null,null,null,null,null,null,null,null,null,null,null,null,null,null,null,null,null,null,null,null,null,null,null,null,null,null,null,null,null,null,null,null,null,null,null,null,null,null,null,null,null,null,null,null,null,null,null,null,null,null,null,null,null,null,null,null,null,null,null,null,null,null,null,null,null,null,null,null,null,null,null,null,10,2]
[null,null,null,null,null,null,null,null,null,null,null,null,null,null,null,null,null,null,null,null,null,null,null,null,null,null,null,null,null,null,null,null,null,null,null,null,null,null,null,null,null,null,null,null,null,null,null,null,null,null,null,null,null,null,null,null,null,null,null,null,null,null,null,null,null,null,null,null,null,null,null,null,null,null,null,null,null,null,null,null,null,null,null,null,null,null,null,null,null,null,null,null,null,null,null,null,10,3]
[null,null,null,null,null,null,null,null,null,null,null,null,null,null,null,null,null,null,null,null,null,null,null,null,null,null,null,null,null,null,null,null,null,null,null,null,null,null,null,null,null,null,null,null,null,null,null,null,null,null,null,null,null,null,null,null,null,null,null,null,null,null,null,null,null,null,null,null,null,null,null,null,null,null,null,null,null,null,null,null,null,null,null,null,null,null,null,null,null,null,null,null,null,null,null,null,10,4]
[null,null,null,null,null,null,null,null,null,null,null,null,null,null,null,null,null,null,null,null,null,null,null,null,null,null,null,null,null,null,null,null,null,null,null,null,null,null,null,null,null,null,null,null,null,null,null,null,null,null,null,null,null,null,null,null,null,null,null,null,null,null,null,null,null,null,null,null,null,null,null,null,null,null,null,null,null,null,null,null,null,null,null,null,null,null,null,null,null,null,null,null,null,null,null,null,10,5]
[null,null,null,null,null,null,null,null,null,null,null,null,null,null,null,null,null,null,null,null,null,null,null,null,null,null,null,null,null,null,null,null,null,null,null,null,null,null,null,null,null,null,null,null,null,null,null,null,null,null,null,null,null,null,null,null,null,null,null,null,null,null,null,null,null,null,null,null,null,null,null,null,null,null,null,null,null,null,null,null,null,null,null,null,null,null,null,null,null,null,null,null,null,null,null,null,10,6]
[null,null,null,null,null,null,null,null,null,null,null,null,null,null,null,null,null,null,null,null,null,null,null,null,null,null,null,null,null,null,null,null,null,null,null,null,null,null,null,null,null,null,null,null,null,null,null,null,null,null,null,null,null,null,null,null,null,null,null,null,null,null,null,null,null,null,null,null,null,null,null,null,null,null,null,null,null,null,null,null,null,null,null,null,null,null,null,null,null,null,null,null,null,null,null,null,10,7]
[null,null,null,null,null,null,null,null,null,null,null,null,null,null,null,null,null,null,null,null,null,null,null,null,null,null,null,null,null,null,null,null,null,null,null,null,null,null,null,null,null,null,null,null,null,null,null,null,null,null,null,null,null,null,null,null,null,null,null,null,null,null,null,null,null,null,null,null,null,null,null,null,null,null,null,null,null,null,null,null,null,null,null,null,null,null,null,null,null,null,null,null,null,null,null,null,10,8]
[null,null,null,null,null,null,null,null,null,null,null,null,null,null,null,null,null,null,null,null,null,null,null,null,null,null,null,null,null,null,null,null,null,null,null,null,null,null,null,null,null,null,null,null,null,null,null,null,null,null,null,null,null,null,null,null,null,null,null,null,null,null,null,null,null,null,null,null,null,null,null,null,null,null,null,null,null,null,null,null,null,null,null,null,null,null,null,null,null,null,null,null,null,null,null,null,10,9]
[null,null,null,null,null,null,null,null,null,null,null,null,null,null,null,null,null,null,null,null,null,null,null,null,null,null,null,null,null,null,null,null,null,null,null,null,null,null,null,null,null,null,null,null,null,null,null,null,null,null,null,null,null,null,null,null,null,null,null,null,null,null,null,null,null,null,null,null,null,null,null,null,null,null,null,null,null,null,null,null,null,null,null,null,null,null,null,null,null,null,null,null,null,null,null,null,11,1]
[null,null,null,null,null,null,null,null,null,null,null,null,null,null,null,null,null,null,null,null,null,null,null,null,null,null,null,null,null,null,null,null,null,null,null,null,null,null,null,null,null,null,null,null,null,null,null,null,null,null,null,null,null,null,null,null,null,null,null,null,null,null,null,null,null,null,null,null,null,null,null,null,null,null,null,null,null,null,null,null,null,null,null,null,null,null,null,null,null,null,null,null,null,null,null,null,11,2]
[null,null,null,null,null,null,null,null,null,null,null,null,null,null,null,null,null,null,null,null,null,null,null,null,null,null,null,null,null,null,null,null,null,null,null,null,null,null,null,null,null,null,null,null,null,null,null,null,null,null,null,null,null,null,null,null,null,null,null,null,null,null,null,null,null,null,null,null,null,null,null,null,null,null,null,null,null,null,null,null,null,null,null,null,null,null,null,null,null,null,null,null,null,null,null,null,11,3]
[null,null,null,null,null,null,null,null,null,null,null,null,null,null,null,null,null,null,null,null,null,null,null,null,null,null,null,null,null,null,null,null,null,null,null,null,null,null,null,null,null,null,null,null,null,null,null,null,null,null,null,null,null,null,null,null,null,null,null,null,null,null,null,null,null,null,null,null,null,null,null,null,null,null,null,null,null,null,null,null,null,null,null,null,null,null,null,null,null,null,null,null,null,null,null,null,11,4]
[null,null,null,null,null,null,null,null,null,null,null,null,null,null,null,null,null,null,null,null,null,null,null,null,null,null,null,null,null,null,null,null,null,null,null,null,null,null,null,null,null,null,null,null,null,null,null,null,null,null,null,null,null,null,null,null,null,null,null,null,null,null,null,null,null,null,null,null,null,null,null,null,null,null,null,null,null,null,null,null,null,null,null,null,null,null,null,null,null,null,null,null,null,null,null,null,11,5]
[null,null,null,null,null,null,null,null,null,null,null,null,null,null,null,null,null,null,null,null,null,null,null,null,null,null,null,null,null,null,null,null,null,null,null,null,null,null,null,null,null,null,null,null,null,null,null,null,null,null,null,null,null,null,null,null,null,null,null,null,null,null,null,null,null,null,null,null,null,null,null,null,null,null,null,null,null,null,null,null,null,null,null,null,null,null,null,null,null,null,null,null,null,null,null,null,11,6]
[null,null,null,null,null,null,null,null,null,null,null,null,null,null,null,null,null,null,null,null,null,null,null,null,null,null,null,null,null,null,null,null,null,null,null,null,null,null,null,null,null,null,null,null,null,null,null,null,null,null,null,null,null,null,null,null,null,null,null,null,null,null,null,null,null,null,null,null,null,null,null,null,null,null,null,null,null,null,null,null,null,null,null,null,null,null,null,null,null,null,null,null,null,null,null,null,11,7]
[null,null,null,null,null,null,null,null,null,null,null,null,null,null,null,null,null,null,null,null,null,null,null,null,null,null,null,null,null,null,null,null,null,null,null,null,null,null,null,null,null,null,null,null,null,null,null,null,null,null,null,null,null,null,null,null,null,null,null,null,null,null,null,null,null,null,null,null,null,null,null,null,null,null,null,null,null,null,null,null,null,null,null,null,null,null,null,null,null,null,null,null,null,null,null,null,11,8]
[null,null,null,null,null,null,null,null,null,null,null,null,null,null,null,null,null,null,null,null,null,null,null,null,null,null,null,null,null,null,null,null,null,null,null,null,null,null,null,null,null,null,null,null,null,null,null,null,null,null,null,null,null,null,null,null,null,null,null,null,null,null,null,null,null,null,null,null,null,null,null,null,null,null,null,null,null,null,null,null,null,null,null,null,null,null,null,null,null,null,null,null,null,null,null,null,11,9]
[null,null,null,null,null,null,null,null,null,null,null,null,null,null,null,null,null,null,null,null,null,null,null,null,null,null,null,null,null,null,null,null,null,null,null,null,null,null,null,null,null,null,null,null,null,null,null,null,null,null,null,null,null,null,null,null,null,null,null,null,null,null,null,null,null,null,null,null,null,null,null,null,null,null,null,null,null,null,null,null,null,null,null,null,null,null,null,null,null,null,null,null,null,null,null,null,12,1]
[null,null,null,null,null,null,null,null,null,null,null,null,null,null,null,null,null,null,null,null,null,null,null,null,null,null,null,null,null,null,null,null,null,null,null,null,null,null,null,null,null,null,null,null,null,null,null,null,null,null,null,null,null,null,null,null,null,null,null,null,null,null,null,null,null,null,null,null,null,null,null,null,null,null,null,null,null,null,null,null,null,null,null,null,null,null,null,null,null,null,null,null,null,null,null,null,12,2]
[null,null,null,null,null,null,null,null,null,null,null,null,null,null,null,null,null,null,null,null,null,null,null,null,null,null,null,null,null,null,null,null,null,null,null,null,null,null,null,null,null,null,null,null,null,null,null,null,null,null,null,null,null,null,null,null,null,null,null,null,null,null,null,null,null,null,null,null,null,null,null,null,null,null,null,null,null,null,null,null,null,null,null,null,null,null,null,null,null,null,null,null,null,null,null,null,12,3]
[null,null,null,null,null,null,null,null,null,null,null,null,null,null,null,null,null,null,null,null,null,null,null,null,null,null,null,null,null,null,null,null,null,null,null,null,null,null,null,null,null,null,null,null,null,null,null,null,null,null,null,null,null,null,null,null,null,null,null,null,null,null,null,null,null,null,null,null,null,null,null,null,null,null,null,null,null,null,null,null,null,null,null,null,null,null,null,null,null,null,null,null,null,null,null,null,12,4]
[null,null,null,null,null,null,null,null,null,null,null,null,null,null,null,null,null,null,null,null,null,null,null,null,null,null,null,null,null,null,null,null,null,null,null,null,null,null,null,null,null,null,null,null,null,null,null,null,null,null,null,null,null,null,null,null,null,null,null,null,null,null,null,null,null,null,null,null,null,null,null,null,null,null,null,null,null,null,null,null,null,null,null,null,null,null,null,null,null,null,null,null,null,null,null,null,12,5]
[null,null,null,null,null,null,null,null,null,null,null,null,null,null,null,null,null,null,null,null,null,null,null,null,null,null,null,null,null,null,null,null,null,null,null,null,null,null,null,null,null,null,null,null,null,null,null,null,null,null,null,null,null,null,null,null,null,null,null,null,null,null,null,null,null,null,null,null,null,null,null,null,null,null,null,null,null,null,null,null,null,null,null,null,null,null,null,null,null,null,null,null,null,null,null,null,12,6]
[null,null,null,null,null,null,null,null,null,null,null,null,null,null,null,null,null,null,null,null,null,null,null,null,null,null,null,null,null,null,null,null,null,null,null,null,null,null,null,null,null,null,null,null,null,null,null,null,null,null,null,null,null,null,null,null,null,null,null,null,null,null,null,null,null,null,null,null,null,null,null,null,null,null,null,null,null,null,null,null,null,null,null,null,null,null,null,null,null,null,null,null,null,null,null,null,12,7]
[null,null,null,null,null,null,null,null,null,null,null,null,null,null,null,null,null,null,null,null,null,null,null,null,null,null,null,null,null,null,null,null,null,null,null,null,null,null,null,null,null,null,null,null,null,null,null,null,null,null,null,null,null,null,null,null,null,null,null,null,null,null,null,null,null,null,null,null,null,null,null,null,null,null,null,null,null,null,null,null,null,null,null,null,null,null,null,null,null,null,null,null,null,null,null,null,12,8]
[null,null,null,null,null,null,null,null,null,null,null,null,null,null,null,null,null,null,null,null,null,null,null,null,null,null,null,null,null,null,null,null,null,null,null,null,null,null,null,null,null,null,null,null,null,null,null,null,null,null,null,null,null,null,null,null,null,null,null,null,null,null,null,null,null,null,null,null,null,null,null,null,null,null,null,null,null,null,null,null,null,null,null,null,null,null,null,null,null,null,null,null,null,null,null,null,12,9]
[null,null,null,null,null,null,null,null,null,null,null,null,null,null,null,null,null,null,null,null,null,null,null,null,null,null,null,null,null,null,null,null,null,null,null,null,null,null,null,null,null,null,null,null,null,null,null,null,null,null,null,null,null,null,null,null,null,null,null,null,null,null,null,null,null,null,null,null,null,null,null,null,null,null,null,null,null,null,null,null,null,null,null,null,null,null,null,null,null,null,null,null,null,null,null,null,13,1]
[null,null,null,null,null,null,null,null,null,null,null,null,null,null,null,null,null,null,null,null,null,null,null,null,null,null,null,null,null,null,null,null,null,null,null,null,null,null,null,null,null,null,null,null,null,null,null,null,null,null,null,null,null,null,null,null,null,null,null,null,null,null,null,null,null,null,null,null,null,null,null,null,null,null,null,null,null,null,null,null,null,null,null,null,null,null,null,null,null,null,null,null,null,null,null,null,13,2]
[null,null,null,null,null,null,null,null,null,null,null,null,null,null,null,null,null,null,null,null,null,null,null,null,null,null,null,null,null,null,null,null,null,null,null,null,null,null,null,null,null,null,null,null,null,null,null,null,null,null,null,null,null,null,null,null,null,null,null,null,null,null,null,null,null,null,null,null,null,null,null,null,null,null,null,null,null,null,null,null,null,null,null,null,null,null,null,null,null,null,null,null,null,null,null,null,13,3]
[null,null,null,null,null,null,null,null,null,null,null,null,null,null,null,null,null,null,null,null,null,null,null,null,null,null,null,null,null,null,null,null,null,null,null,null,null,null,null,null,null,null,null,null,null,null,null,null,null,null,null,null,null,null,null,null,null,null,null,null,null,null,null,null,null,null,null,null,null,null,null,null,null,null,null,null,null,null,null,null,null,null,null,null,null,null,null,null,null,null,null,null,null,null,null,null,13,4]
[null,null,null,null,null,null,null,null,null,null,null,null,null,null,null,null,null,null,null,null,null,null,null,null,null,null,null,null,null,null,null,null,null,null,null,null,null,null,null,null,null,null,null,null,null,null,null,null,null,null,null,null,null,null,null,null,null,null,null,null,null,null,null,null,null,null,null,null,null,null,null,null,null,null,null,null,null,null,null,null,null,null,null,null,null,null,null,null,null,null,null,null,null,null,null,null,13,5]
[null,null,null,null,null,null,null,null,null,null,null,null,null,null,null,null,null,null,null,null,null,null,null,null,null,null,null,null,null,null,null,null,null,null,null,null,null,null,null,null,null,null,null,null,null,null,null,null,null,null,null,null,null,null,null,null,null,null,null,null,null,null,null,null,null,null,null,null,null,null,null,null,null,null,null,null,null,null,null,null,null,null,null,null,null,null,null,null,null,null,null,null,null,null,null,null,13,6]
[null,null,null,null,null,null,null,null,null,null,null,null,null,null,null,null,null,null,null,null,null,null,null,null,null,null,null,null,null,null,null,null,null,null,null,null,null,null,null,null,null,null,null,null,null,null,null,null,null,null,null,null,null,null,null,null,null,null,null,null,null,null,null,null,null,null,null,null,null,null,null,null,null,null,null,null,null,null,null,null,null,null,null,null,null,null,null,null,null,null,null,null,null,null,null,null,13,7]
[null,null,null,null,null,null,null,null,null,null,null,null,null,null,null,null,null,null,null,null,null,null,null,null,null,null,null,null,null,null,null,null,null,null,null,null,null,null,null,null,null,null,null,null,null,null,null,null,null,null,null,null,null,null,null,null,null,null,null,null,null,null,null,null,null,null,null,null,null,null,null,null,null,null,null,null,null,null,null,null,null,null,null,null,null,null,null,null,null,null,null,null,null,null,null,null,13,8]
[null,null,null,null,null,null,null,null,null,null,null,null,null,null,null,null,null,null,null,null,null,null,null,null,null,null,null,null,null,null,null,null,null,null,null,null,null,null,null,null,null,null,null,null,null,null,null,null,null,null,null,null,null,null,null,null,null,null,null,null,null,null,null,null,null,null,null,null,null,null,null,null,null,null,null,null,null,null,null,null,null,null,null,null,null,null,null,null,null,null,null,null,null,null,null,null,13,9]
[null,null,null,null,null,null,null,null,null,null,null,null,null,null,null,null,null,null,null,null,null,null,null,null,null,null,null,null,null,null,null,null,null,null,null,null,null,null,null,null,null,null,null,null,null,null,null,null,null,null,null,null,null,null,null,null,null,null,null,null,null,null,null,null,null,null,null,null,null,null,null,null,null,null,null,null,null,null,null,null,null,null,null,null,null,null,null,null,null,null,null,null,null,null,null,null,14,1]
[null,null,null,null,null,null,null,null,null,null,null,null,null,null,null,null,null,null,null,null,null,null,null,null,null,null,null,null,null,null,null,null,null,null,null,null,null,null,null,null,null,null,null,null,null,null,null,null,null,null,null,null,null,null,null,null,null,null,null,null,null,null,null,null,null,null,null,null,null,null,null,null,null,null,null,null,null,null,null,null,null,null,null,null,null,null,null,null,null,null,null,null,null,null,null,null,14,2]
[null,null,null,null,null,null,null,null,null,null,null,null,null,null,null,null,null,null,null,null,null,null,null,null,null,null,null,null,null,null,null,null,null,null,null,null,null,null,null,null,null,null,null,null,null,null,null,null,null,null,null,null,null,null,null,null,null,null,null,null,null,null,null,null,null,null,null,null,null,null,null,null,null,null,null,null,null,null,null,null,null,null,null,null,null,null,null,null,null,null,null,null,null,null,null,null,14,3]
[null,null,null,null,null,null,null,null,null,null,null,null,null,null,null,null,null,null,null,null,null,null,null,null,null,null,null,null,null,null,null,null,null,null,null,null,null,null,null,null,null,null,null,null,null,null,null,null,null,null,null,null,null,null,null,null,null,null,null,null,null,null,null,null,null,null,null,null,null,null,null,null,null,null,null,null,null,null,null,null,null,null,null,null,null,null,null,null,null,null,null,null,null,null,null,null,14,4]
[null,null,null,null,null,null,null,null,null,null,null,null,null,null,null,null,null,null,null,null,null,null,null,null,null,null,null,null,null,null,null,null,null,null,null,null,null,null,null,null,null,null,null,null,null,null,null,null,null,null,null,null,null,null,null,null,null,null,null,null,null,null,null,null,null,null,null,null,null,null,null,null,null,null,null,null,null,null,null,null,null,null,null,null,null,null,null,null,null,null,null,null,null,null,null,null,14,5]
[null,null,null,null,null,null,null,null,null,null,null,null,null,null,null,null,null,null,null,null,null,null,null,null,null,null,null,null,null,null,null,null,null,null,null,null,null,null,null,null,null,null,null,null,null,null,null,null,null,null,null,null,null,null,null,null,null,null,null,null,null,null,null,null,null,null,null,null,null,null,null,null,null,null,null,null,null,null,null,null,null,null,null,null,null,null,null,null,null,null,null,null,null,null,null,null,14,6]
[null,null,null,null,null,null,null,null,null,null,null,null,null,null,null,null,null,null,null,null,null,null,null,null,null,null,null,null,null,null,null,null,null,null,null,null,null,null,null,null,null,null,null,null,null,null,null,null,null,null,null,null,null,null,null,null,null,null,null,null,null,null,null,null,null,null,null,null,null,null,null,null,null,null,null,null,null,null,null,null,null,null,null,null,null,null,null,null,null,null,null,null,null,null,null,null,14,7]
[null,null,null,null,null,null,null,null,null,null,null,null,null,null,null,null,null,null,null,null,null,null,null,null,null,null,null,null,null,null,null,null,null,null,null,null,null,null,null,null,null,null,null,null,null,null,null,null,null,null,null,null,null,null,null,null,null,null,null,null,null,null,null,null,null,null,null,null,null,null,null,null,null,null,null,null,null,null,null,null,null,null,null,null,null,null,null,null,null,null,null,null,null,null,null,null,14,8]
[null,null,null,null,null,null,null,null,null,null,null,null,null,null,null,null,null,null,null,null,null,null,null,null,null,null,null,null,null,null,null,null,null,null,null,null,null,null,null,null,null,null,null,null,null,null,null,null,null,null,null,null,null,null,null,null,null,null,null,null,null,null,null,null,null,null,null,null,null,null,null,null,null,null,null,null,null,null,null,null,null,null,null,null,null,null,null,null,null,null,null,null,null,null,null,null,14,9]
[null,null,null,null,null,null,null,null,null,null,null,null,null,null,null,null,null,null,null,null,null,null,null,null,null,null,null,null,null,null,null,null,null,null,null,null,null,null,null,null,null,null,null,null,null,null,null,null,null,null,null,null,null,null,null,null,null,null,null,null,null,null,null,null,null,null,null,null,null,null,null,null,null,null,null,null,null,null,null,null,null,null,null,null,null,null,null,null,null,null,null,null,null,null,null,null,15,1]
[null,null,null,null,null,null,null,null,null,null,null,null,null,null,null,null,null,null,null,null,null,null,null,null,null,null,null,null,null,null,null,null,null,null,null,null,null,null,null,null,null,null,null,null,null,null,null,null,null,null,null,null,null,null,null,null,null,null,null,null,null,null,null,null,null,null,null,null,null,null,null,null,null,null,null,null,null,null,null,null,null,null,null,null,null,null,null,null,null,null,null,null,null,null,null,null,15,2]
[null,null,null,null,null,null,null,null,null,null,null,null,null,null,null,null,null,null,null,null,null,null,null,null,null,null,null,null,null,null,null,null,null,null,null,null,null,null,null,null,null,null,null,null,null,null,null,null,null,null,null,null,null,null,null,null,null,null,null,null,null,null,null,null,null,null,null,null,null,null,null,null,null,null,null,null,null,null,null,null,null,null,null,null,null,null,null,null,null,null,null,null,null,null,null,null,15,3]
[null,null,null,null,null,null,null,null,null,null,null,null,null,null,null,null,null,null,null,null,null,null,null,null,null,null,null,null,null,null,null,null,null,null,null,null,null,null,null,null,null,null,null,null,null,null,null,null,null,null,null,null,null,null,null,null,null,null,null,null,null,null,null,null,null,null,null,null,null,null,null,null,null,null,null,null,null,null,null,null,null,null,null,null,null,null,null,null,null,null,null,null,null,null,null,null,15,4]
[null,null,null,null,null,null,null,null,null,null,null,null,null,null,null,null,null,null,null,null,null,null,null,null,null,null,null,null,null,null,null,null,null,null,null,null,null,null,null,null,null,null,null,null,null,null,null,null,null,null,null,null,null,null,null,null,null,null,null,null,null,null,null,null,null,null,null,null,null,null,null,null,null,null,null,null,null,null,null,null,null,null,null,null,null,null,null,null,null,null,null,null,null,null,null,null,15,5]
[null,null,null,null,null,null,null,null,null,null,null,null,null,null,null,null,null,null,null,null,null,null,null,null,null,null,null,null,null,null,null,null,null,null,null,null,null,null,null,null,null,null,null,null,null,null,null,null,null,null,null,null,null,null,null,null,null,null,null,null,null,null,null,null,null,null,null,null,null,null,null,null,null,null,null,null,null,null,null,null,null,null,null,null,null,null,null,null,null,null,null,null,null,null,null,null,15,6]
[null,null,null,null,null,null,null,null,null,null,null,null,null,null,null,null,null,null,null,null,null,null,null,null,null,null,null,null,null,null,null,null,null,null,null,null,null,null,null,null,null,null,null,null,null,null,null,null,null,null,null,null,null,null,null,null,null,null,null,null,null,null,null,null,null,null,null,null,null,null,null,null,null,null,null,null,null,null,null,null,null,null,null,null,null,null,null,null,null,null,null,null,null,null,null,null,15,7]
[null,null,null,null,null,null,null,null,null,null,null,null,null,null,null,null,null,null,null,null,null,null,null,null,null,null,null,null,null,null,null,null,null,null,null,null,null,null,null,null,null,null,null,null,null,null,null,null,null,null,null,null,null,null,null,null,null,null,null,null,null,null,null,null,null,null,null,null,null,null,null,null,null,null,null,null,null,null,null,null,null,null,null,null,null,null,null,null,null,null,null,null,null,null,null,null,15,8]
[null,null,null,null,null,null,null,null,null,null,null,null,null,null,null,null,null,null,null,null,null,null,null,null,null,null,null,null,null,null,null,null,null,null,null,null,null,null,null,null,null,null,null,null,null,null,null,null,null,null,null,null,null,null,null,null,null,null,null,null,null,null,null,null,null,null,null,null,null,null,null,null,null,null,null,null,null,null,null,null,null,null,null,null,null,null,null,null,null,null,null,null,null,null,null,null,15,9]

{"sheet":"Hesap","index":1,"n_rows":44,"n_cols":31,"rows_kept":44,"cut":false,"hidden":true,"merged":[[41,0,43,0],[41,5,43,5],[41,6,43,6],[30,5,31,6],[32,0,34,0],[32,5,34,5],[32,6,34,6],[35,0,37,0],[35,5,37,5],[35,6,37,6],[4,11,4,14],[29,2,29,6],[4,15,4,18],[4,23,4,25],[38,0,40,0],[38,5,40,5],[38,6,40,6],[4,3,4,6],[4,7,4,10],[4,19,4,22],[4,2,5,2],[4,1,5,1],[4,0,5,0]]}
[null,null,null,{"$f":"Bordro!CU7","v":"✓"},null,null,null,null,null,null,null,null,null,null,null,null,null,null,null,null,null,null,null,null,null,null,{"$f":"AB1-1","v":2020},2021,2022,{"$f":"AE1-1","v":2023},{"$f":"YEAR(TODAY())","v":2024}]
[]
[]
[]
["Adı Soyadı","Maaş","Yan Ödeme","Yan Ödeme",null,null,null,"Ek Tazm",null,null,null,"Ek Ödeme",null,null,null,"Top. Söz. İkramiyesi",null,null,null,"Diğer Tazminat",null,null,null,"Diğer Ödemeler"]
[null,null,null,"Ödenecek","Ödenen","Fark","Tutar","Ödenecek","Ödenen","Fark","Tutar","Ödenecek","Ödenen","Fark","Tutar","Ödenecek","Ödenen","Fark","Tutar","Ödenecek","Ödenen","Fark","Tutar","İlave Ödeme","Aile","Çocuk","Toplam","Gelir","Damga","Kesinti","Ödenecek"]
[{"$f":"Bordro!F8","v":0},{"$f":"Bordro!D8","v":0},{"$f":"Bordro!E8","v":0},{"$f":"Bordro!O8","v":0},{"$f":"Bordro!N8","v":0},{"$f":"D7-E7","v":0},{"$f":"ROUND(F7*C7,2)","v":0},{"$f":"Bordro!Q8","v":0},{"$f":"Bordro!P8","v":0},{"$f":"H7-I7","v":0},{"$f":"ROUND((9500*B7)/100*J7,2)","v":0},{"$f":"Bordro!S8","v":0},{"$f":"Bordro!R8","v":0},{"$f":"L7-M7","v":0},{"$f":"ROUND((9500*B7)/100*N7,2)","v":0},{"$f":"Bordro!U8","v":0},{"$f":"Bordro!T8","v":0},{"$f":"P7-Q7","v":0},{"$f":"ROUND(R7*B7,2)","v":0},{"$f":"Bordro!W8","v":0},{"$f":"Bordro!V8","v":0},{"$f":"T7-U7","v":0},null,{"$f":"IF(Bordro!X8=$D$1,ROUND(15965*B7,2),0)","v":0},{"$f":"IF(Bordro!Y8=$D$1,ROUND(B7*2273,2),0)","v":0},{"$f":"ROUND(Bordro!Z8*B7*500,2)+ROUND(Bordro!AA8*B7*250,2)","v":0},{"$f":"G7+K7+O7+S7+X7+Y7+Z7+W7","v":0},{"$f":"ROUND(G7/100*Bordro!K8,2)","v":0},{"$f":"ROUND((K7+O7+S7+X7+W7)/1000*Bordro!$V$5,2)","v":0},{"$f":"AB7+AC7","v":0},{"$f":"AA7-AD7","v":0}]
[{"$f":"Bordro!F9","v":0},{"$f":"Bordro!D9","v":0},{"$f":"Bordro!E9","v":0},{"$f":"Bordro!O9","v":0},{"$f":"Bordro!N9","v":0},{"$f":"D8-E8","v":0},{"$f":"ROUND(F8*C8,2)","v":0},{"$f":"Bordro!Q9","v":0},{"$f":"Bordro!P9","v":0},{"$f":"H8-I8","v":0},{"$f":"ROUND((9500*B8)/100*J8,2)","v":0},{"$f":"Bordro!S9","v":0},{"$f":"Bordro!R9","v":0},{"$f":"L8-M8","v":0},{"$f":"ROUND((9500*B8)/100*N8,2)","v":0},{"$f":"Bordro!U9","v":0},{"$f":"Bordro!T9","v":0},{"$f":"P8-Q8","v":0},{"$f":"ROUND(R8*B8,2)","v":0},{"$f":"Bordro!W9","v":0},{"$f":"Bordro!V9","v":0},{"$f":"T8-U8","v":0},null,{"$f":"IF(Bordro!X9=$D$1,ROUND(15965*B8,2),0)","v":0},{"$f":"IF(Bordro!Y9=$D$1,ROUND(B8*2273,2),0)","v":0},{"$f":"ROUND(Bordro!Z9*B8*500,2)+ROUND(Bordro!AA9*B8*250,2)","v":0},{"$f":"G8+K8+O8+S8+X8+Y8+Z8+W8","v":0},{"$f":"ROUND(G8/100*Bordro!K9,2)","v":0},{"$f":"ROUND((K8+O8+S8+X8+W8)/1000*Bordro!$V$5,2)","v":0},{"$f":"AB8+AC8","v":0},{"$f":"AA8-AD8","v":0}]
[{"$f":"Bordro!F10","v":0},{"$f":"Bordro!D10","v":0},{"$f":"Bordro!E10","v":0},{"$f":"Bordro!O10","v":0},{"$f":"Bordro!N10","v":0},0,{"$f":"ROUND(F9*C9,2)","v":0},{"$f":"Bordro!Q10","v":0},{"$f":"Bordro!P10","v":0},0,0,{"$f":"Bordro!S10","v":0},{"$f":"Bordro!R10","v":0},0,0,{"$f":"Bordro!U10","v":0},{"$f":"Bordro!T10","v":0},0,0,{"$f":"Bordro!W10","v":0},{"$f":"Bordro!V10","v":0},0,null,{"$f":"IF(Bordro!X10=$D$1,ROUND(15965*B9,2),0)","v":0},{"$f":"IF(Bordro!Y10=$D$1,ROUND(B9*2273,2),0)","v":0},{"$f":"ROUND(Bordro!Z10*B9*500,2)+ROUND(Bordro!AA10*B9*250,2)","v":0},0,{"$f":"ROUND(G9/100*Bordro!K10,2)","v":0},{"$f":"ROUND((K9+O9+S9+X9+W9)/1000*Bordro!$V$5,2)","v":0},0,0]
[{"$f":"Bordro!F11","v":0},{"$f":"Bordro!D11","v":0},{"$f":"Bordro!E11","v":0},{"$f":"Bordro!O11","v":0},{"$f":"Bordro!N11","v":0},0,0,{"$f":"Bordro!Q11","v":0},{"$f":"Bordro!P11","v":0},0,0,{"$f":"Bordro!S11","v":0},{"$f":"Bordro!R11","v":0},0,0,{"$f":"Bordro!U11","v":0},{"$f":"Bordro!T11","v":0},0,0,{"$f":"Bordro!W11","v":0},{"$f":"Bordro!V11","v":0},0,null,{"$f":"IF(Bordro!X11=$D$1,ROUND(15965*B10,2),0)","v":0},{"$f":"IF(Bordro!Y11=$D$1,ROUND(B10*2273,2),0)","v":0},{"$f":"ROUND(Bordro!Z11*B10*500,2)+ROUND(Bordro!AA11*B10*250,2)","v":0},0,{"$f":"ROUND(G10/100*Bordro!K11,2)","v":0},{"$f":"ROUND((K10+O10+S10+X10+W10)/1000*Bordro!$V$5,2)","v":0},0,0]
[{"$f":"Bordro!F12","v":0},{"$f":"Bordro!D12","v":0},{"$f":"Bordro!E12","v":0},{"$f":"Bordro!O12","v":0},{"$f":"Bordro!N12","v":0},0,0,{"$f":"Bordro!Q12","v":0},{"$f":"Bordro!P12","v":0},0,0,{"$f":"Bordro!S12","v":0},{"$f":"Bordro!R12","v":0},0,0,{"$f":"Bordro!U12","v":0},{"$f":"Bordro!T12","v":0},0,0,{"$f":"Bordro!W12","v":0},{"$f":"Bordro!V12","v":0},0,null,{"$f":"IF(Bordro!X12=$D$1,ROUND(15965*B11,2),0)","v":0},{"$f":"IF(Bordro!Y12=$D$1,ROUND(B11*2273,2),0)","v":0},{"$f":"ROUND(Bordro!Z12*B11*500,2)+ROUND(Bordro!AA12*B11*250,2)","v":0},0,{"$f":"ROUND(G11/100*Bordro!K12,2)","v":0},{"$f":"ROUND((K11+O11+S11+X11+W11)/1000*Bordro!$V$5,2)","v":0},0,0]
[{"$f":"Bordro!F13","v":0},{"$f":"Bordro!D13","v":0},{"$f":"Bordro!E13","v":0},{"$f":"Bordro!O13","v":0},{"$f":"Bordro!N13","v":0},0,0,{"$f":"Bordro!Q13","v":0},{"$f":"Bordro!P13","v":0},0,0,{"$f":"Bordro!S13","v":0},{"$f":"Bordro!R13","v":0},0,0,{"$f":"Bordro!U13","v":0},{"$f":"Bordro!T13","v":0},0,0,{"$f":"Bordro!W13","v":0},{"$f":"Bordro!V13","v":0},0,null,{"$f":"IF(Bordro!X13=$D$1,ROUND(15965*B12,2),0)","v":0},{"$f":"IF(Bordro!Y13=$D$1,ROUND(B12*2273,2),0)","v":0},{"$f":"ROUND(Bordro!Z13*B12*500,2)+ROUND(Bordro!AA13*B12*250,2)","v":0},0,{"$f":"ROUND(G12/100*Bordro!K13,2)","v":0},{"$f":"ROUND((K12+O12+S12+X12+W12)/1000*Bordro!$V$5,2)","v":0},0,0]
[{"$f":"Bordro!F14","v":0},{"$f":"Bordro!D14","v":0},{"$f":"Bordro!E14","v":0},{"$f":"Bordro!O14","v":0},{"$f":"Bordro!N14","v":0},0,0,{"$f":"Bordro!Q14","v":0},{"$f":"Bordro!P14","v":0},0,0,{"$f":"Bordro!S14","v":0},{"$f":"Bordro!R14","v":0},0,0,{"$f":"Bordro!U14","v":0},{"$f":"Bordro!T14","v":0},0,0,{"$f":"Bordro!W14","v":0},{"$f":"Bordro!V14","v":0},0,null,{"$f":"IF(Bordro!X14=$D$1,ROUND(15965*B13,2),0)","v":0},{"$f":"IF(Bordro!Y14=$D$1,ROUND(B13*2273,2),0)","v":0},{"$f":"ROUND(Bordro!Z14*B13*500,2)+ROUND(Bordro!AA14*B13*250,2)","v":0},0,{"$f":"ROUND(G13/100*Bordro!K14,2)","v":0},{"$f":"ROUND((K13+O13+S13+X13+W13)/1000*Bordro!$V$5,2)","v":0},0,0]
[{"$f":"Bordro!F15","v":0},{"$f":"Bordro!D15","v":0},{"$f":"Bordro!E15","v":0},{"$f":"Bordro!O15","v":0},{"$f":"Bordro!N15","v":0},0,0,{"$f":"Bordro!Q15","v":0},{"$f":"Bordro!P15","v":0},0,0,{"$f":"Bordro!S15","v":0},{"$f":"Bordro!R15","v":0},0,0,{"$f":"Bordro!U15","v":0},{"$f":"Bordro!T15","v":0},0,0,{"$f":"Bordro!W15","v":0},{"$f":"Bordro!V15","v":0},0,null,{"$f":"IF(Bordro!X15=$D$1,ROUND(15965*B14,2),0)","v":0},{"$f":"IF(Bordro!Y15=$D$1,ROUND(B14*2273,2),0)","v":0},{"$f":"ROUND(Bordro!Z15*B14*500,2)+ROUND(Bordro!AA15*B14*250,2)","v":0},0,{"$f":"ROUND(G14/100*Bordro!K15,2)","v":0},{"$f":"ROUND((K14+O14+S14+X14+W14)/1000*Bordro!$V$5,2)","v":0},0,0]
[{"$f":"Bordro!F16","v":0},{"$f":"Bordro!D16","v":0},{"$f":"Bordro!E16","v":0},{"$f":"Bordro!O16","v":0},{"$f":"Bordro!N16","v":0},0,0,{"$f":"Bordro!Q16","v":0},{"$f":"Bordro!P16","v":0},0,0,{"$f":"Bordro!S16","v":0},{"$f":"Bordro!R16","v":0},0,0,{"$f":"Bordro!U16","v":0},{"$f":"Bordro!T16","v":0},0,0,{"$f":"Bordro!W16","v":0},{"$f":"Bordro!V16","v":0},0,null,{"$f":"IF(Bordro!X16=$D$1,ROUND(15965*B15,2),0)","v":0},{"$f":"IF(Bordro!Y16=$D$1,ROUND(B15*2273,2),0)","v":0},{"$f":"ROUND(Bordro!Z16*B15*500,2)+ROUND(Bordro!AA16*B15*250,2)","v":0},0,{"$f":"ROUND(G15/100*Bordro!K16,2)","v":0},{"$f":"ROUND((K15+O15+S15+X15+W15)/1000*Bordro!$V$5,2)","v":0},0,0]
[{"$f":"Bordro!F17","v":0},{"$f":"Bordro!D17","v":0},{"$f":"Bordro!E17","v":0},{"$f":"Bordro!O17","v":0},{"$f":"Bordro!N17","v":0},0,0,{"$f":"Bordro!Q17","v":0},{"$f":"Bordro!P17","v":0},0,0,{"$f":"Bordro!S17","v":0},{"$f":"Bordro!R17","v":0},0,0,{"$f":"Bordro!U17","v":0},{"$f":"Bordro!T17","v":0},0,0,{"$f":"Bordro!W17","v":0},{"$f":"Bordro!V17","v":0},0,null,{"$f":"IF(Bordro!X17=$D$1,ROUND(15965*B16,2),0)","v":0},{"$f":"IF(Bordro!Y17=$D$1,ROUND(B16*2273,2),0)","v":0},{"$f":"ROUND(Bordro!Z17*B16*500,2)+ROUND(Bordro!AA17*B16*250,2)","v":0},0,{"$f":"ROUND(G16/100*Bordro!K17,2)","v":0},{"$f":"ROUND((K16+O16+S16+X16+W16)/1000*Bordro!$V$5,2)","v":0},0,0]
[{"$f":"Bordro!F18","v":0},{"$f":"Bordro!D18","v":0},{"$f":"Bordro!E18","v":0},{"$f":"Bordro!O18","v":0},{"$f":"Bordro!N18","v":0},0,0,{"$f":"Bordro!Q18","v":0},{"$f":"Bordro!P18","v":0},0,0,{"$f":"Bordro!S18","v":0},{"$f":"Bordro!R18","v":0},0,0,{"$f":"Bordro!U18","v":0},{"$f":"Bordro!T18","v":0},0,0,{"$f":"Bordro!W18","v":0},{"$f":"Bordro!V18","v":0},0,null,{"$f":"IF(Bordro!X18=$D$1,ROUND(15965*B17,2),0)","v":0},{"$f":"IF(Bordro!Y18=$D$1,ROUND(B17*2273,2),0)","v":0},{"$f":"ROUND(Bordro!Z18*B17*500,2)+ROUND(Bordro!AA18*B17*250,2)","v":0},0,{"$f":"ROUND(G17/100*Bordro!K18,2)","v":0},{"$f":"ROUND((K17+O17+S17+X17+W17)/1000*Bordro!$V$5,2)","v":0},0,0]
[{"$f":"Bordro!F19","v":0},{"$f":"Bordro!D19","v":0},{"$f":"Bordro!E19","v":0},{"$f":"Bordro!O19","v":0},{"$f":"Bordro!N19","v":0},0,0,{"$f":"Bordro!Q19","v":0},{"$f":"Bordro!P19","v":0},0,0,{"$f":"Bordro!S19","v":0},{"$f":"Bordro!R19","v":0},0,0,{"$f":"Bordro!U19","v":0},{"$f":"Bordro!T19","v":0},0,0,{"$f":"Bordro!W19","v":0},{"$f":"Bordro!V19","v":0},0,null,{"$f":"IF(Bordro!X19=$D$1,ROUND(15965*B18,2),0)","v":0},{"$f":"IF(Bordro!Y19=$D$1,ROUND(B18*2273,2),0)","v":0},{"$f":"ROUND(Bordro!Z19*B18*500,2)+ROUND(Bordro!AA19*B18*250,2)","v":0},0,{"$f":"ROUND(G18/100*Bordro!K19,2)","v":0},{"$f":"ROUND((K18+O18+S18+X18+W18)/1000*Bordro!$V$5,2)","v":0},0,0]
[{"$f":"Bordro!F20","v":0},{"$f":"Bordro!D20","v":0},{"$f":"Bordro!E20","v":0},{"$f":"Bordro!O20","v":0},{"$f":"Bordro!N20","v":0},0,0,{"$f":"Bordro!Q20","v":0},{"$f":"Bordro!P20","v":0},0,0,{"$f":"Bordro!S20","v":0},{"$f":"Bordro!R20","v":0},0,0,{"$f":"Bordro!U20","v":0},{"$f":"Bordro!T20","v":0},0,0,{"$f":"Bordro!W20","v":0},{"$f":"Bordro!V20","v":0},0,null,{"$f":"IF(Bordro!X20=$D$1,ROUND(15965*B19,2),0)","v":0},{"$f":"IF(Bordro!Y20=$D$1,ROUND(B19*2273,2),0)","v":0},{"$f":"ROUND(Bordro!Z20*B19*500,2)+ROUND(Bordro!AA20*B19*250,2)","v":0},0,{"$f":"ROUND(G19/100*Bordro!K20,2)","v":0},{"$f":"ROUND((K19+O19+S19+X19+W19)/1000*Bordro!$V$5,2)","v":0},0,0]
[{"$f":"Bordro!F21","v":0},{"$f":"Bordro!D21","v":0},{"$f":"Bordro!E21","v":0},{"$f":"Bordro!O21","v":0},{"$f":"Bordro!N21","v":0},0,0,{"$f":"Bordro!Q21","v":0},{"$f":"Bordro!P21","v":0},0,0,{"$f":"Bordro!S21","v":0},{"$f":"Bordro!R21","v":0},0,0,{"$f":"Bordro!U21","v":0},{"$f":"Bordro!T21","v":0},0,0,{"$f":"Bordro!W21","v":0},{"$f":"Bordro!V21","v":0},0,null,{"$f":"IF(Bordro!X21=$D$1,ROUND(15965*B20,2),0)","v":0},{"$f":"IF(Bordro!Y21=$D$1,ROUND(B20*2273,2),0)","v":0},{"$f":"ROUND(Bordro!Z21*B20*500,2)+ROUND(Bordro!AA21*B20*250,2)","v":0},0,{"$f":"ROUND(G20/100*Bordro!K21,2)","v":0},{"$f":"ROUND((K20+O20+S20+X20+W20)/1000*Bordro!$V$5,2)","v":0},0,0]
[{"$f":"Bordro!F22","v":0},{"$f":"Bordro!D22","v":0},{"$f":"Bordro!E22","v":0},{"$f":"Bordro!O22","v":0},{"$f":"Bordro!N22","v":0},0,0,{"$f":"Bordro!Q22","v":0},{"$f":"Bordro!P22","v":0},0,0,{"$f":"Bordro!S22","v":0},{"$f":"Bordro!R22","v":0},0,0,{"$f":"Bordro!U22","v":0},{"$f":"Bordro!T22","v":0},0,0,{"$f":"Bordro!W22","v":0},{"$f":"Bordro!V22","v":0},0,null,{"$f":"IF(Bordro!X22=$D$1,ROUND(15965*B21,2),0)","v":0},{"$f":"IF(Bordro!Y22=$D$1,ROUND(B21*2273,2),0)","v":0},{"$f":"ROUND(Bordro!Z22*B21*500,2)+ROUND(Bordro!AA22*B21*250,2)","v":0},0,{"$f":"ROUND(G21/100*Bordro!K22,2)","v":0},{"$f":"ROUND((K21+O21+S21+X21+W21)/1000*Bordro!$V$5,2)","v":0},0,0]
[{"$f":"Bordro!F23","v":0},{"$f":"Bordro!D23","v":0},{"$f":"Bordro!E23","v":0},{"$f":"Bordro!O23","v":0},{"$f":"Bordro!N23","v":0},0,0,{"$f":"Bordro!Q23","v":0},{"$f":"Bordro!P23","v":0},0,0,{"$f":"Bordro!S23","v":0},{"$f":"Bordro!R23","v":0},0,0,{"$f":"Bordro!U23","v":0},{"$f":"Bordro!T23","v":0},0,0,{"$f":"Bordro!W23","v":0},{"$f":"Bordro!V23","v":0},0,null,{"$f":"IF(Bordro!X23=$D$1,ROUND(15965*B22,2),0)","v":0},{"$f":"IF(Bordro!Y23=$D$1,ROUND(B22*2273,2),0)","v":0},{"$f":"ROUND(Bordro!Z23*B22*500,2)+ROUND(Bordro!AA23*B22*250,2)","v":0},0,{"$f":"ROUND(G22/100*Bordro!K23,2)","v":0},{"$f":"ROUND((K22+O22+S22+X22+W22)/1000*Bordro!$V$5,2)","v":0},0,0]
[{"$f":"Bordro!F24","v":0},{"$f":"Bordro!D24","v":0},{"$f":"Bordro!E24","v":0},{"$f":"Bordro!O24","v":0},{"$f":"Bordro!N24","v":0},0,0,{"$f":"Bordro!Q24","v":0},{"$f":"Bordro!P24","v":0},0,0,{"$f":"Bordro!S24","v":0},{"$f":"Bordro!R24","v":0},0,0,{"$f":"Bordro!U24","v":0},{"$f":"Bordro!T24","v":0},0,0,{"$f":"Bordro!W24","v":0},{"$f":"Bordro!V24","v":0},0,null,{"$f":"IF(Bordro!X24=$D$1,ROUND(15965*B23,2),0)","v":0},{"$f":"IF(Bordro!Y24=$D$1,ROUND(B23*2273,2),0)","v":0},{"$f":"ROUND(Bordro!Z24*B23*500,2)+ROUND(Bordro!AA24*B23*250,2)","v":0},0,{"$f":"ROUND(G23/100*Bordro!K24,2)","v":0},{"$f":"ROUND((K23+O23+S23+X23+W23)/1000*Bordro!$V$5,2)","v":0},0,0]
[{"$f":"Bordro!F25","v":0},{"$f":"Bordro!D25","v":0},{"$f":"Bordro!E25","v":0},{"$f":"Bordro!O25","v":0},{"$f":"Bordro!N25","v":0},0,0,{"$f":"Bordro!Q25","v":0},{"$f":"Bordro!P25","v":0},0,0,{"$f":"Bordro!S25","v":0},{"$f":"Bordro!R25","v":0},0,0,{"$f":"Bordro!U25","v":0},{"$f":"Bordro!T25","v":0},0,0,{"$f":"Bordro!W25","v":0},{"$f":"Bordro!V25","v":0},0,null,{"$f":"IF(Bordro!X25=$D$1,ROUND(15965*B24,2),0)","v":0},{"$f":"IF(Bordro!Y25=$D$1,ROUND(B24*2273,2),0)","v":0},{"$f":"ROUND(Bordro!Z25*B24*500,2)+ROUND(Bordro!AA25*B24*250,2)","v":0},0,{"$f":"ROUND(G24/100*Bordro!K25,2)","v":0},{"$f":"ROUND((K24+O24+S24+X24+W24)/1000*Bordro!$V$5,2)","v":0},0,0]
[{"$f":"Bordro!F26","v":0},{"$f":"Bordro!D26","v":0},{"$f":"Bordro!E26","v":0},{"$f":"Bordro!O26","v":0},{"$f":"Bordro!N26","v":0},0,0,{"$f":"Bordro!Q26","v":0},{"$f":"Bordro!P26","v":0},0,0,{"$f":"Bordro!S26","v":0},{"$f":"Bordro!R26","v":0},0,0,{"$f":"Bordro!U26","v":0},{"$f":"Bordro!T26","v":0},0,0,{"$f":"Bordro!W26","v":0},{"$f":"Bordro!V26","v":0},0,null,{"$f":"IF(Bordro!X26=$D$1,ROUND(15965*B25,2),0)","v":0},{"$f":"IF(Bordro!Y26=$D$1,ROUND(B25*2273,2),0)","v":0},{"$f":"ROUND(Bordro!Z26*B25*500,2)+ROUND(Bordro!AA26*B25*250,2)","v":0},0,{"$f":"ROUND(G25/100*Bordro!K26,2)","v":0},{"$f":"ROUND((K25+O25+S25+X25+W25)/1000*Bordro!$V$5,2)","v":0},0,0]
[{"$f":"Bordro!F27","v":0},{"$f":"Bordro!D27","v":0},{"$f":"Bordro!E27","v":0},{"$f":"Bordro!O27","v":0},{"$f":"Bordro!N27","v":0},0,0,{"$f":"Bordro!Q27","v":0},{"$f":"Bordro!P27","v":0},0,0,{"$f":"Bordro!S27","v":0},{"$f":"Bordro!R27","v":0},0,0,{"$f":"Bordro!U27","v":0},{"$f":"Bordro!T27","v":0},0,0,{"$f":"Bordro!W27","v":0},{"$f":"Bordro!V27","v":0},0,null,{"$f":"IF(Bordro!X27=$D$1,ROUND(15965*B26,2),0)","v":0},{"$f":"IF(Bordro!Y27=$D$1,ROUND(B26*2273,2),0)","v":0},{"$f":"ROUND(Bordro!Z27*B26*500,2)+ROUND(Bordro!AA27*B26*250,2)","v":0},0,{"$f":"ROUND(G26/100*Bordro!K27,2)","v":0},{"$f":"ROUND((K26+O26+S26+X26+W26)/1000*Bordro!$V$5,2)","v":0},0,0]
["toplamlar",null,null,{"$f":"SUM(D7:D26)","v":0},{"$f":"SUM(E7:E26)","v":0},0,{"$f":"SUM(G7:G26)","v":0},{"$f":"SUM(H7:H26)","v":0},{"$f":"SUM(I7:I26)","v":0},0,{"$f":"SUM(K7:K26)","v":0},{"$f":"SUM(L7:L26)","v":0},{"$f":"SUM(M7:M26)","v":0},0,{"$f":"SUM(O7:O26)","v":0},{"$f":"SUM(P7:P26)","v":0},{"$f":"SUM(Q7:Q26)","v":0},0,{"$f":"SUM(S7:S26)","v":0},{"$f":"SUM(T7:T26)","v":0},{"$f":"SUM(U7:U26)","v":0},0,{"$f":"SUM(W7:W26)","v":0},{"$f":"SUM(X7:X26)","v":0},0,0,0,{"$f":"SUM(AB7:AB26)","v":0},0,0,0]
[]
[]
["TUTAR",{"$f":"AA27","v":0},{"$f":"IF(SUM(C33:C44)=0,\"\",G42&G39&G36&G33&\" TL.\")&F31","v":""}]
["LİRA",{"$f":"ROUNDDOWN(B30,0)*1","v":0},{"$f":"RIGHT(B32,1)*1","v":0},{"$f":"IF(C31=1,\"Bir\",IF(C31=2,\"İki\",IF(C31=3,\"Üç\",IF(C31=4,\"Dört\",IF(C31=5,\"Beş\",IF(C31=6,\"Altı\",IF(C31=7,\"Yedi\",IF(C31=8,\"Sekiz\",\"Dokuz\"))))))))","v":"Dokuz"},{"$f":"IF(C31=0,\"\",D31)","v":""},{"$f":"IF(B32=0,\"\",\" \"&E32&E31&\" Kr.\")","v":""}]
["KURUŞ",{"$f":"ROUND(B30-B31,2)*100","v":0},{"$f":"((B32-C31)/10)*1","v":0},{"$f":"IF(C32=1,\"On\",IF(C32=2,\"Yirmi\",IF(C32=3,\"Otuz\",IF(C32=4,\"Kırk\",IF(C32=5,\"Elli\",IF(C32=6,\"Altmış\",IF(C32=7,\"Yetmiş\",IF(C32=8,\"Seksen\",\"Doksan\"))))))))","v":"Doksan"},{"$f":"IF(C32=0,\"\",D32)","v":""}]
["YÜZLER",{"$f":"B31*1","v":0},{"$f":"RIGHT(B33,1)*1","v":0},{"$f":"IF(C33=1,\"Bir\",IF(C33=2,\"İki\",IF(C33=3,\"Üç\",IF(C33=4,\"Dört\",IF(C33=5,\"Beş\",IF(C33=6,\"Altı\",IF(C33=7,\"Yedi\",IF(C33=8,\"Sekiz\",\"Dokuz\"))))))))","v":"Dokuz"},{"$f":"IF(C33=0,\"\",D33)","v":""},{"$f":"CONCATENATE(E35,E34,E33)","v":""},{"$f":"IF(C33+C34+C35=0,\"\",CONCATENATE(E35,E34,E33))","v":""}]
[null,{"$f":"((B33-C33)/10)*1","v":0},{"$f":"RIGHT(B34,1)*1","v":0},{"$f":"IF(C34=1,\"On\",IF(C34=2,\"Yirmi\",IF(C34=3,\"Otuz\",IF(C34=4,\"Kırk\",IF(C34=5,\"Elli\",IF(C34=6,\"Altmış\",IF(C34=7,\"Yetmiş\",IF(C34=8,\"Seksen\",\"Doksan\"))))))))","v":"Doksan"},{"$f":"IF(C34=0,\"\",D34)","v":""}]
[null,0,0,{"$f":"IF(C35=1,\"Bir\",IF(C35=2,\"İki\",IF(C35=3,\"Üç\",IF(C35=4,\"Dört\",IF(C35=5,\"Beş\",IF(C35=6,\"Altı\",IF(C35=7,\"Yedi\",IF(C35=8,\"Sekiz\",\"Dokuz\"))))))))","v":"Dokuz"},{"$f":"IF(C35=0,\"\",IF(C35=1,\"Yüz\",CONCATENATE(D35,\"Yüz\")))","v":""}]
["BİNLER",0,0,{"$f":"IF(C36=1,\"Bir\",IF(C36=2,\"İki\",IF(C36=3,\"Üç\",IF(C36=4,\"Dört\",IF(C36=5,\"Beş\",IF(C36=6,\"Altı\",IF(C36=7,\"Yedi\",IF(C36=8,\"Sekiz\",\"Dokuz\"))))))))","v":"Dokuz"},"",{"$f":"CONCATENATE(E38,E37,E36,\"Bin\")","v":"Bin"},{"$f":"IF(F36=\"BirBin\",\"Bin\",IF(C36+C37+C38=0,\"\",CONCATENATE(E38,E37,E36,\"Bin\")))","v":""}]
[null,0,0,{"$f":"IF(C37=1,\"On\",IF(C37=2,\"Yirmi\",IF(C37=3,\"Otuz\",IF(C37=4,\"Kırk\",IF(C37=5,\"Elli\",IF(C37=6,\"Altmış\",IF(C37=7,\"Yetmiş\",IF(C37=8,\"Seksen\",\"Doksan\"))))))))","v":"Doksan"},""]
[null,0,0,{"$f":"IF(C38=1,\"Bir\",IF(C38=2,\"İki\",IF(C38=3,\"Üç\",IF(C38=4,\"Dört\",IF(C38=5,\"Beş\",IF(C38=6,\"Altı\",IF(C38=7,\"Yedi\",IF(C38=8,\"Sekiz\",\"Dokuz\"))))))))","v":"Dokuz"},{"$f":"IF(C38=0,\"\",IF(C38=1,\"Yüz\",CONCATENATE(D38,\"Yüz\")))","v":""}]
["MİLYONLAR",0,0,{"$f":"IF(C39=1,\"Bir\",IF(C39=2,\"İki\",IF(C39=3,\"Üç\",IF(C39=4,\"Dört\",IF(C39=5,\"Beş\",IF(C39=6,\"Altı\",IF(C39=7,\"Yedi\",IF(C39=8,\"Sekiz\",\"Dokuz\"))))))))","v":"Dokuz"},"",{"$f":"CONCATENATE(E41,E40,E39,\"Milyon\")","v":"Milyon"},{"$f":"IF(C39+C40+C41=0,\"\",CONCATENATE(E41,E40,E39,\"Milyon\"))","v":""}]
[null,0,0,{"$f":"IF(C40=1,\"On\",IF(C40=2,\"Yirmi\",IF(C40=3,\"Otuz\",IF(C40=4,\"Kırk\",IF(C40=5,\"Elli\",IF(C40=6,\"Altmış\",IF(C40=7,\"Yetmiş\",IF(C40=8,\"Seksen\",\"Doksan\"))))))))","v":"Doksan"},""]
[null,0,0,{"$f":"IF(C41=1,\"Bir\",IF(C41=2,\"İki\",IF(C41=3,\"Üç\",IF(C41=4,\"Dört\",IF(C41=5,\"Beş\",IF(C41=6,\"Altı\",IF(C41=7,\"Yedi\",IF(C41=8,\"Sekiz\",\"Dokuz\"))))))))","v":"Dokuz"},{"$f":"IF(C41=0,\"\",IF(C41=1,\"Yüz\",CONCATENATE(D41,\"Yüz\")))","v":""}]
["MİLYARLAR",0,0,{"$f":"IF(C42=1,\"Bir\",IF(C42=2,\"İki\",IF(C42=3,\"Üç\",IF(C42=4,\"Dört\",IF(C42=5,\"Beş\",IF(C42=6,\"Altı\",IF(C42=7,\"Yedi\",IF(C42=8,\"Sekiz\",\"Dokuz\"))))))))","v":"Dokuz"},"",{"$f":"CONCATENATE(E44,E43,E42,\"Milyar\")","v":"Milyar"},{"$f":"IF(C42+C43+C44=0,\"\",CONCATENATE(E44,E43,E42,\"Milyar\"))","v":""}]
[null,0,0,{"$f":"IF(C43=1,\"On\",IF(C43=2,\"Yirmi\",IF(C43=3,\"Otuz\",IF(C43=4,\"Kırk\",IF(C43=5,\"Elli\",IF(C43=6,\"Altmış\",IF(C43=7,\"Yetmiş\",IF(C43=8,\"Seksen\",\"Doksan\"))))))))","v":"Doksan"},""]
[null,0,0,{"$f":"IF(C44=1,\"Bir\",IF(C44=2,\"İki\",IF(C44=3,\"Üç\",IF(C44=4,\"Dört\",IF(C44=5,\"Beş\",IF(C44=6,\"Altı\",IF(C44=7,\"Yedi\",IF(C44=8,\"Sekiz\",\"Dokuz\"))))))))","v":"Dokuz"},{"$f":"IF(C44=0,\"\",IF(C44=1,\"Yüz\",CONCATENATE(D44,\"Yüz\")))","v":""}]

{"sheet":"Bord","index":2,"n_rows":32,"n_cols":10,"rows_kept":32,"cut":false,"hidden":true,"merged":[[7,0,7,1],[8,0,8,1],[9,0,9,1],[20,0,20,1],[21,0,21,1],[12,0,12,1],[14,0,14,1],[15,0,15,1],[16,0,16,1],[17,0,17,1],[13,0,13,1],[29,2,29,3],[30,2,30,3],[31,2,31,3],[28,2,28,3],[22,0,22,1],[2,1,2,2],[26,0,26,8],[0,0,0,8],[25,0,25,2],[10,0,10,1],[11,0,11,1],[3,8,4,8],[3,0,4,1],[5,0,5,1],[3,2,4,2],[6,0,6,1],[23,0,23,1],[24,0,24,1],[18,0,18,1],[19,0,19,1],[1,1,1,2]]}
["ÇEŞİTLİ ÖDEMELER BORDROSU"]
["Okul Türü",{"$f":"Bordro!M3","v":"13.67-İl/İlçe Milli Eğitim Müdürlükleri"}]
["Birimi",{"$f":"Bordro!M4","v":"İlçe Milli Eğitim Müdürlüğü"}]
["İlgili Ay/Yıl\nKimlik No/Adı Soyadı\nUnvanı - D/K\nHesap/IBAN No",null,"Maaş Kts.\nYan Öd. Kts.\nSend. Üye No\nVergi Oranı","Yan Ödeme","Ek Tazminat","Ek Ödeme","Top. Söz. İkr.","Diğer Ödemeler","Toplam Tutar\nGelir Vergisi\nDamga Vergisi\nÖdenecek Tutar",1]
[null,null,null,"Ödenen Göst.\nÖdenecek Göst.\nGösterge Fark\nÖdeme Tutarı","Ödenen Göst.\nÖdenecek Göst.\nGösterge Fark\nÖdeme Tutarı","Ödenen Göst.\nÖdenecek Göst.\nGösterge Fark\nÖdeme Tutarı","Ödenen Göst.\nÖdenecek Göst.\nGösterge Fark\nÖdeme Tutarı","İlave Ödeme\nDiğer Tazminat\nAile Yardımı\nÇocuk Yardımı",null,1]
[{"$f":"Bordro!B8&\"/\"&Bordro!C8&\"                                                                                                    \"&Bordro!G8&\" - \"&Bordro!F8&\"                                                                                                    \"&Bordro!H8&\" - \"&Bordro!L8&\"/\"&Bordro!M8&\"                                                                                                    \"&Bordro!I8","v":"/                                                                                                     -                                                                                                      - /                                                                                                    "},null,{"$f":"TEXT(Bordro!D8,\"#.##0,00000000\")&\"                                                  \"&TEXT(Bordro!E8,\"#.##0,00000000\")&\"                                                  \"&IF(Bordro!J8=\"\",0,Bordro!J8)&\"                                                  \"&Bordro!K8","v":"0,00000000                                                  0,00000000                                                  0                                                  "},{"$f":"Hesap!E7&\"                                                                                                    \"&Hesap!D7&\"                                                                                                    \"&Hesap!F7&\"                                                                                                    \"&TEXT(Hesap!G7,\"#.##0,00\")","v":"0                                                                                                    0                                                                                                    0                                                                                                    0,00"},{"$f":"Hesap!I7&\"                                                                                                    \"&Hesap!H7&\"                                                                                                    \"&Hesap!J7&\"                                                                                                    \"&TEXT(Hesap!K7,\"#.##0,00\")","v":"0                                                                                                    0                                                                                                    0                                                                                                    0,00"},{"$f":"Hesap!M7&\"                                                                                                    \"&Hesap!L7&\"                                                                                                    \"&Hesap!N7&\"                                                                                                    \"&TEXT(Hesap!O7,\"#.##0,00\")","v":"0                                                                                                    0                                                                                                    0                                                                                                    0,00"},{"$f":"Hesap!Q7&\"                                                                                                    \"&Hesap!P7&\"                                                                                                    \"&Hesap!R7&\"                                                                                                    \"&TEXT(Hesap!S7,\"#.##0,00\")","v":"0                                                                                                    0                                                                                                    0                                                                                                    0,00"},{"$f":"TEXT(Hesap!X7,\"#.##0,00\")&\"                                                                                                    \"&TEXT(Hesap!W7,\"#.##0,00\")&\"                                                                                                    \"&TEXT(Hesap!Y7,\"#.##0,00\")&\"                                                                                                    \"&TEXT(Hesap!Z7,\"#.##0,00\")","v":"0,00                                                                                                    0,00                                                                                                    0,00                                                                                                    0,00"},{"$f":"TEXT(Hesap!AA7,\"#.##0,00\")&\"                                                                                                    \"&TEXT(Hesap!AB7,\"#.##0,00\")&\"                                                                                                    \"&TEXT(Hesap!AC7,\"#.##0,00\")&\"                                                                                                    \"&TEXT(Hesap!AE7,\"#.##0,00\")","v":"0,00                                                                                                    0,00                                                                                                    0,00                                                                                                    0,00"},{"$f":"IF(Hesap!AE7=0,0,1)","v":0}]
[{"$f":"Bordro!B9&\"/\"&Bordro!C9&\"                                                                                                    \"&Bordro!G9&\" - \"&Bordro!F9&\"                                                                                                    \"&Bordro!H9&\" - \"&Bordro!L9&\"/\"&Bordro!M9&\"                                                                                                    \"&Bordro!I9","v":"/                                                                                                     -                                                                                                      - /                                                                                                    "},null,{"$f":"TEXT(Bordro!D9,\"#.##0,00000000\")&\"                                                  \"&TEXT(Bordro!E9,\"#.##0,00000000\")&\"                                                  \"&IF(Bordro!J9=\"\",0,Bordro!J9)&\"                                                  \"&Bordro!K9","v":"0,00000000                                                  0,00000000                                                  0                                                  "},{"$f":"Hesap!E8&\"                                                                                                    \"&Hesap!D8&\"                                                                                                    \"&Hesap!F8&\"                                                                                                    \"&TEXT(Hesap!G8,\"#.##0,00\")","v":"0                                                                                                    0                                                                                                    0                                                                                                    0,00"},{"$f":"Hesap!I8&\"                                                                                                    \"&Hesap!H8&\"                                                                                                    \"&Hesap!J8&\"                                                                                                    \"&TEXT(Hesap!K8,\"#.##0,00\")","v":"0                                                                                                    0                                                                                                    0                                                                                                    0,00"},{"$f":"Hesap!M8&\"                                                                                                    \"&Hesap!L8&\"                                                                                                    \"&Hesap!N8&\"                                                                                                    \"&TEXT(Hesap!O8,\"#.##0,00\")","v":"0                                                                                                    0                                                                                                    0                                                                                                    0,00"},{"$f":"Hesap!Q8&\"                                                                                                    \"&Hesap!P8&\"                                                                                                    \"&Hesap!R8&\"                                                                                                    \"&TEXT(Hesap!S8,\"#.##0,00\")","v":"0                                                                                                    0                                                                                                    0                                                                                                    0,00"},{"$f":"TEXT(Hesap!X8,\"#.##0,00\")&\"                                                                                                    \"&TEXT(Hesap!W8,\"#.##0,00\")&\"                                                                                                    \"&TEXT(Hesap!Y8,\"#.##0,00\")&\"                                                                                                    \"&TEXT(Hesap!Z8,\"#.##0,00\")","v":"0,00                                                                                                    0,00                                                                                                    0,00                                                                                                    0,00"},{"$f":"TEXT(Hesap!AA8,\"#.##0,00\")&\"                                                                                                    \"&TEXT(Hesap!AB8,\"#.##0,00\")&\"                                                                                                    \"&TEXT(Hesap!AC8,\"#.##0,00\")&\"                                                                                                    \"&TEXT(Hesap!AE8,\"#.##0,00\")","v":"0,00                                                                                                    0,00                                                                                                    0,00                                                                                                    0,00"},{"$f":"IF(Hesap!AE8=0,0,1)","v":0}]
[{"$f":"Bordro!B10&\"/\"&Bordro!C10&\"                                                                                                    \"&Bordro!G10&\" - \"&Bordro!F10&\"                                                                                                    \"&Bordro!H10&\" - \"&Bordro!L10&\"/\"&Bordro!M10&\"                                                                                                    \"&Bordro!I10","v":"/                                                                                                     -                                                                                                      - /                                                                                                    "},null,{"$f":"TEXT(Bordro!D10,\"#.##0,00000000\")&\"                                                  \"&TEXT(Bordro!E10,\"#.##0,00000000\")&\"                                                  \"&IF(Bordro!J10=\"\",0,Bordro!J10)&\"                                                  \"&Bordro!K10","v":"0,00000000                                                  0,00000000                                                  0                                                  "},{"$f":"Hesap!E9&\"                                                                                                    \"&Hesap!D9&\"                                                                                                    \"&Hesap!F9&\"                                                                                                    \"&TEXT(Hesap!G9,\"#.##0,00\")","v":"0                                                                                                    0                                                                                                    0                                                                                                    0,00"},{"$f":"Hesap!I9&\"                                                                                                    \"&Hesap!H9&\"                                                                                                    \"&Hesap!J9&\"                                                                                                    \"&TEXT(Hesap!K9,\"#.##0,00\")","v":"0                                                                                                    0                                                                                                    0                                                                                                    0,00"},{"$f":"Hesap!M9&\"                                                                                                    \"&Hesap!L9&\"                                                                                                    \"&Hesap!N9&\"                                                                                                    \"&TEXT(Hesap!O9,\"#.##0,00\")","v":"0                                                                                                    0                                                                                                    0                                                                                                    0,00"},{"$f":"Hesap!Q9&\"                                                                                                    \"&Hesap!P9&\"                                                                                                    \"&Hesap!R9&\"                                                                                                    \"&TEXT(Hesap!S9,\"#.##0,00\")","v":"0                                                                                                    0                                                                                                    0                                                                                                    0,00"},{"$f":"TEXT(Hesap!X9,\"#.##0,00\")&\"                                                                                                    \"&TEXT(Hesap!W9,\"#.##0,00\")&\"                                                                                                    \"&TEXT(Hesap!Y9,\"#.##0,00\")&\"                                                                                                    \"&TEXT(Hesap!Z9,\"#.##0,00\")","v":"0,00                                                                                                    0,00                                                                                                    0,00                                                                                                    0,00"},{"$f":"TEXT(Hesap!AA9,\"#.##0,00\")&\"                                                                                                    \"&TEXT(Hesap!AB9,\"#.##0,00\")&\"                                                                                                    \"&TEXT(Hesap!AC9,\"#.##0,00\")&\"                                                                                                    \"&TEXT(Hesap!AE9,\"#.##0,00\")","v":"0,00                                                                                                    0,00                                                                                                    0,00                                                                                                    0,00"},{"$f":"IF(Hesap!AE9=0,0,1)","v":0}]
[{"$f":"Bordro!B11&\"/\"&Bordro!C11&\"                                                                                                    \"&Bordro!G11&\" - \"&Bordro!F11&\"                                                                                                    \"&Bordro!H11&\" - \"&Bordro!L11&\"/\"&Bordro!M11&\"                                                                                                    \"&Bordro!I11","v":"/                                                                                                     -                                                                                                      - /                                                                                                    "},null,{"$f":"TEXT(Bordro!D11,\"#.##0,00000000\")&\"                                                  \"&TEXT(Bordro!E11,\"#.##0,00000000\")&\"                                                  \"&IF(Bordro!J11=\"\",0,Bordro!J11)&\"                                                  \"&Bordro!K11","v":"0,00000000                                                  0,00000000                                                  0                                                  "},{"$f":"Hesap!E10&\"                                                                                                    \"&Hesap!D10&\"                                                                                                    \"&Hesap!F10&\"                                                                                                    \"&TEXT(Hesap!G10,\"#.##0,00\")","v":"0                                                                                                    0                                                                                                    0                                                                                                    0,00"},{"$f":"Hesap!I10&\"                                                                                                    \"&Hesap!H10&\"                                                                                                    \"&Hesap!J10&\"                                                                                                    \"&TEXT(Hesap!K10,\"#.##0,00\")","v":"0                                                                                                    0                                                                                                    0                                                                                                    0,00"},{"$f":"Hesap!M10&\"                                                                                                    \"&Hesap!L10&\"                                                                                                    \"&Hesap!N10&\"                                                                                                    \"&TEXT(Hesap!O10,\"#.##0,00\")","v":"0                                                                                                    0                                                                                                    0                                                                                                    0,00"},{"$f":"Hesap!Q10&\"                                                                                                    \"&Hesap!P10&\"                                                                                                    \"&Hesap!R10&\"                                                                                                    \"&TEXT(Hesap!S10,\"#.##0,00\")","v":"0                                                                                                    0                                                                                                    0                                                                                                    0,00"},{"$f":"TEXT(Hesap!X10,\"#.##0,00\")&\"                                                                                                    \"&TEXT(Hesap!W10,\"#.##0,00\")&\"                                                                                                    \"&TEXT(Hesap!Y10,\"#.##0,00\")&\"                                                                                                    \"&TEXT(Hesap!Z10,\"#.##0,00\")","v":"0,00                                                                                                    0,00                                                                                                    0,00                                                                                                    0,00"},{"$f":"TEXT(Hesap!AA10,\"#.##0,00\")&\"                                                                                                    \"&TEXT(Hesap!AB10,\"#.##0,00\")&\"                                                                                                    \"&TEXT(Hesap!AC10,\"#.##0,00\")&\"                                                                                                    \"&TEXT(Hesap!AE10,\"#.##0,00\")","v":"0,00                                                                                                    0,00                                                                                                    0,00                                                                                                    0,00"},{"$f":"IF(Hesap!AE10=0,0,1)","v":0}]
[{"$f":"Bordro!B12&\"/\"&Bordro!C12&\"                                                                                                    \"&Bordro!G12&\" - \"&Bordro!F12&\"                                                                                                    \"&Bordro!H12&\" - \"&Bordro!L12&\"/\"&Bordro!M12&\"                                                                                                    \"&Bordro!I12","v":"/                                                                                                     -                                                                                                      - /                                                                                                    "},null,{"$f":"TEXT(Bordro!D12,\"#.##0,00000000\")&\"                                                  \"&TEXT(Bordro!E12,\"#.##0,00000000\")&\"                                                  \"&IF(Bordro!J12=\"\",0,Bordro!J12)&\"                                                  \"&Bordro!K12","v":"0,00000000                                                  0,00000000                                                  0                                                  "},{"$f":"Hesap!E11&\"                                                                                                    \"&Hesap!D11&\"                                                                                                    \"&Hesap!F11&\"                                                                                                    \"&TEXT(Hesap!G11,\"#.##0,00\")","v":"0                                                                                                    0                                                                                                    0                                                                                                    0,00"},{"$f":"Hesap!I11&\"                                                                                                    \"&Hesap!H11&\"                                                                                                    \"&Hesap!J11&\"                                                                                                    \"&TEXT(Hesap!K11,\"#.##0,00\")","v":"0                                                                                                    0                                                                                                    0                                                                                                    0,00"},{"$f":"Hesap!M11&\"                                                                                                    \"&Hesap!L11&\"                                                                                                    \"&Hesap!N11&\"                                                                                                    \"&TEXT(Hesap!O11,\"#.##0,00\")","v":"0                                                                                                    0                                                                                                    0                                                                                                    0,00"},{"$f":"Hesap!Q11&\"                                                                                                    \"&Hesap!P11&\"                                                                                                    \"&Hesap!R11&\"                                                                                                    \"&TEXT(Hesap!S11,\"#.##0,00\")","v":"0                                                                                                    0                                                                                                    0                                                                                                    0,00"},{"$f":"TEXT(Hesap!X11,\"#.##0,00\")&\"                                                                                                    \"&TEXT(Hesap!W11,\"#.##0,00\")&\"                                                                                                    \"&TEXT(Hesap!Y11,\"#.##0,00\")&\"                                                                                                    \"&TEXT(Hesap!Z11,\"#.##0,00\")","v":"0,00                                                                                                    0,00                                                                                                    0,00                                                                                                    0,00"},{"$f":"TEXT(Hesap!AA11,\"#.##0,00\")&\"                                                                                                    \"&TEXT(Hesap!AB11,\"#.##0,00\")&\"                                                                                                    \"&TEXT(Hesap!AC11,\"#.##0,00\")&\"                                                                                                    \"&TEXT(Hesap!AE11,\"#.##0,00\")","v":"0,00                                                                                                    0,00                                                                                                    0,00                                                                                                    0,00"},{"$f":"IF(Hesap!AE11=0,0,1)","v":0}]
[{"$f":"Bordro!B13&\"/\"&Bordro!C13&\"                                                                                                    \"&Bordro!G13&\" - \"&Bordro!F13&\"                                                                                                    \"&Bordro!H13&\" - \"&Bordro!L13&\"/\"&Bordro!M13&\"                                                                                                    \"&Bordro!I13","v":"/                                                                                                     -                                                                                                      - /                                                                                                    "},null,{"$f":"TEXT(Bordro!D13,\"#.##0,00000000\")&\"                                                  \"&TEXT(Bordro!E13,\"#.##0,00000000\")&\"                                                  \"&IF(Bordro!J13=\"\",0,Bordro!J13)&\"                                                  \"&Bordro!K13","v":"0,00000000                                                  0,00000000                                                  0                                                  "},{"$f":"Hesap!E12&\"                                                                                                    \"&Hesap!D12&\"                                                                                                    \"&Hesap!F12&\"                                                                                                    \"&TEXT(Hesap!G12,\"#.##0,00\")","v":"0                                                                                                    0                                                                                                    0                                                                                                    0,00"},{"$f":"Hesap!I12&\"                                                                                                    \"&Hesap!H12&\"                                                                                                    \"&Hesap!J12&\"                                                                                                    \"&TEXT(Hesap!K12,\"#.##0,00\")","v":"0                                                                                                    0                                                                                                    0                                                                                                    0,00"},{"$f":"Hesap!M12&\"                                                                                                    \"&Hesap!L12&\"                                                                                                    \"&Hesap!N12&\"                                                                                                    \"&TEXT(Hesap!O12,\"#.##0,00\")","v":"0                                                                                                    0                                                                                                    0                                                                                                    0,00"},{"$f":"Hesap!Q12&\"                                                                                                    \"&Hesap!P12&\"                                                                                                    \"&Hesap!R12&\"                                                                                                    \"&TEXT(Hesap!S12,\"#.##0,00\")","v":"0                                                                                                    0                                                                                                    0                                                                                                    0,00"},{"$f":"TEXT(Hesap!X12,\"#.##0,00\")&\"                                                                                                    \"&TEXT(Hesap!W12,\"#.##0,00\")&\"                                                                                                    \"&TEXT(Hesap!Y12,\"#.##0,00\")&\"                                                                                                    \"&TEXT(Hesap!Z12,\"#.##0,00\")","v":"0,00                                                                                                    0,00                                                                                                    0,00                                                                                                    0,00"},{"$f":"TEXT(Hesap!AA12,\"#.##0,00\")&\"                                                                                                    \"&TEXT(Hesap!AB12,\"#.##0,00\")&\"                                                                                                    \"&TEXT(Hesap!AC12,\"#.##0,00\")&\"                                                                                                    \"&TEXT(Hesap!AE12,\"#.##0,00\")","v":"0,00                                                                                                    0,00                                                                                                    0,00                                                                                                    0,00"},{"$f":"IF(Hesap!AE12=0,0,1)","v":0}]
[{"$f":"Bordro!B14&\"/\"&Bordro!C14&\"                                                                                                    \"&Bordro!G14&\" - \"&Bordro!F14&\"                                                                                                    \"&Bordro!H14&\" - \"&Bordro!L14&\"/\"&Bordro!M14&\"                                                                                                    \"&Bordro!I14","v":"/                                                                                                     -                                                                                                      - /                                                                                                    "},null,{"$f":"TEXT(Bordro!D14,\"#.##0,00000000\")&\"                                                  \"&TEXT(Bordro!E14,\"#.##0,00000000\")&\"                                                  \"&IF(Bordro!J14=\"\",0,Bordro!J14)&\"                                                  \"&Bordro!K14","v":"0,00000000                                                  0,00000000                                                  0                                                  "},{"$f":"Hesap!E13&\"                                                                                                    \"&Hesap!D13&\"                                                                                                    \"&Hesap!F13&\"                                                                                                    \"&TEXT(Hesap!G13,\"#.##0,00\")","v":"0                                                                                                    0                                                                                                    0                                                                                                    0,00"},{"$f":"Hesap!I13&\"                                                                                                    \"&Hesap!H13&\"                                                                                                    \"&Hesap!J13&\"                                                                                                    \"&TEXT(Hesap!K13,\"#.##0,00\")","v":"0                                                                                                    0                                                                                                    0                                                                                                    0,00"},{"$f":"Hesap!M13&\"                                                                                                    \"&Hesap!L13&\"                                                                                                    \"&Hesap!N13&\"                                                                                                    \"&TEXT(Hesap!O13,\"#.##0,00\")","v":"0                                                                                                    0                                                                                                    0                                                                                                    0,00"},{"$f":"Hesap!Q13&\"                                                                                                    \"&Hesap!P13&\"                                                                                                    \"&Hesap!R13&\"                                                                                                    \"&TEXT(Hesap!S13,\"#.##0,00\")","v":"0                                                                                                    0                                                                                                    0                                                                                                    0,00"},{"$f":"TEXT(Hesap!X13,\"#.##0,00\")&\"                                                                                                    \"&TEXT(Hesap!W13,\"#.##0,00\")&\"                                                                                                    \"&TEXT(Hesap!Y13,\"#.##0,00\")&\"                                                                                                    \"&TEXT(Hesap!Z13,\"#.##0,00\")","v":"0,00                                                                                                    0,00                                                                                                    0,00                                                                                                    0,00"},{"$f":"TEXT(Hesap!AA13,\"#.##0,00\")&\"                                                                                                    \"&TEXT(Hesap!AB13,\"#.##0,00\")&\"                                                                                                    \"&TEXT(Hesap!AC13,\"#.##0,00\")&\"                                                                                                    \"&TEXT(Hesap!AE13,\"#.##0,00\")","v":"0,00                                                                                                    0,00                                                                                                    0,00                                                                                                    0,00"},{"$f":"IF(Hesap!AE13=0,0,1)","v":0}]
[{"$f":"Bordro!B15&\"/\"&Bordro!C15&\"                                                                                                    \"&Bordro!G15&\" - \"&Bordro!F15&\"                                                                                                    \"&Bordro!H15&\" - \"&Bordro!L15&\"/\"&Bordro!M15&\"                                                                                                    \"&Bordro!I15","v":"/                                                                                                     -                                                                                                      - /                                                                                                    "},null,{"$f":"TEXT(Bordro!D15,\"#.##0,00000000\")&\"                                                  \"&TEXT(Bordro!E15,\"#.##0,00000000\")&\"                                                  \"&IF(Bordro!J15=\"\",0,Bordro!J15)&\"                                                  \"&Bordro!K15","v":"0,00000000                                                  0,00000000                                                  0                                                  "},{"$f":"Hesap!E14&\"                                                                                                    \"&Hesap!D14&\"                                                                                                    \"&Hesap!F14&\"                                                                                                    \"&TEXT(Hesap!G14,\"#.##0,00\")","v":"0                                                                                                    0                                                                                                    0                                                                                                    0,00"},{"$f":"Hesap!I14&\"                                                                                                    \"&Hesap!H14&\"                                                                                                    \"&Hesap!J14&\"                                                                                                    \"&TEXT(Hesap!K14,\"#.##0,00\")","v":"0                                                                                                    0                                                                                                    0                                                                                                    0,00"},{"$f":"Hesap!M14&\"                                                                                                    \"&Hesap!L14&\"                                                                                                    \"&Hesap!N14&\"                                                                                                    \"&TEXT(Hesap!O14,\"#.##0,00\")","v":"0                                                                                                    0                                                                                                    0                                                                                                    0,00"},{"$f":"Hesap!Q14&\"                                                                                                    \"&Hesap!P14&\"                                                                                                    \"&Hesap!R14&\"                                                                                                    \"&TEXT(Hesap!S14,\"#.##0,00\")","v":"0                                                                                                    0                                                                                                    0                                                                                                    0,00"},{"$f":"TEXT(Hesap!X14,\"#.##0,00\")&\"                                                                                                    \"&TEXT(Hesap!W14,\"#.##0,00\")&\"                                                                                                    \"&TEXT(Hesap!Y14,\"#.##0,00\")&\"                                                                                                    \"&TEXT(Hesap!Z14,\"#.##0,00\")","v":"0,00                                                                                                    0,00                                                                                                    0,00                                                                                                    0,00"},{"$f":"TEXT(Hesap!AA14,\"#.##0,00\")&\"                                                                                                    \"&TEXT(Hesap!AB14,\"#.##0,00\")&\"                                                                                                    \"&TEXT(Hesap!AC14,\"#.##0,00\")&\"                                                                                                    \"&TEXT(Hesap!AE14,\"#.##0,00\")","v":"0,00                                                                                                    0,00                                                                                                    0,00                                                                                                    0,00"},{"$f":"IF(Hesap!AE14=0,0,1)","v":0}]
[{"$f":"Bordro!B16&\"/\"&Bordro!C16&\"                                                                                                    \"&Bordro!G16&\" - \"&Bordro!F16&\"                                                                                                    \"&Bordro!H16&\" - \"&Bordro!L16&\"/\"&Bordro!M16&\"                                                                                                    \"&Bordro!I16","v":"/                                                                                                     -                                                                                                      - /                                                                                                    "},null,{"$f":"TEXT(Bordro!D16,\"#.##0,00000000\")&\"                                                  \"&TEXT(Bordro!E16,\"#.##0,00000000\")&\"                                                  \"&IF(Bordro!J16=\"\",0,Bordro!J16)&\"                                                  \"&Bordro!K16","v":"0,00000000                                                  0,00000000                                                  0                                                  "},{"$f":"Hesap!E15&\"                                                                                                    \"&Hesap!D15&\"                                                                                                    \"&Hesap!F15&\"                                                                                                    \"&TEXT(Hesap!G15,\"#.##0,00\")","v":"0                                                                                                    0                                                                                                    0                                                                                                    0,00"},{"$f":"Hesap!I15&\"                                                                                                    \"&Hesap!H15&\"                                                                                                    \"&Hesap!J15&\"                                                                                                    \"&TEXT(Hesap!K15,\"#.##0,00\")","v":"0                                                                                                    0                                                                                                    0                                                                                                    0,00"},{"$f":"Hesap!M15&\"                                                                                                    \"&Hesap!L15&\"                                                                                                    \"&Hesap!N15&\"                                                                                                    \"&TEXT(Hesap!O15,\"#.##0,00\")","v":"0                                                                                                    0                                                                                                    0                                                                                                    0,00"},{"$f":"Hesap!Q15&\"                                                                                                    \"&Hesap!P15&\"                                                                                                    \"&Hesap!R15&\"                                                                                                    \"&TEXT(Hesap!S15,\"#.##0,00\")","v":"0                                                                                                    0                                                                                                    0                                                                                                    0,00"},{"$f":"TEXT(Hesap!X15,\"#.##0,00\")&\"                                                                                                    \"&TEXT(Hesap!W15,\"#.##0,00\")&\"                                                                                                    \"&TEXT(Hesap!Y15,\"#.##0,00\")&\"                                                                                                    \"&TEXT(Hesap!Z15,\"#.##0,00\")","v":"0,00                                                                                                    0,00                                                                                                    0,00                                                                                                    0,00"},{"$f":"TEXT(Hesap!AA15,\"#.##0,00\")&\"                                                                                                    \"&TEXT(Hesap!AB15,\"#.##0,00\")&\"                                                                                                    \"&TEXT(Hesap!AC15,\"#.##0,00\")&\"                                                                                                    \"&TEXT(Hesap!AE15,\"#.##0,00\")","v":"0,00                                                                                                    0,00                                                                                                    0,00                                                                                                    0,00"},{"$f":"IF(Hesap!AE15=0,0,1)","v":0}]
[{"$f":"Bordro!B17&\"/\"&Bordro!C17&\"                                                                                                    \"&Bordro!G17&\" - \"&Bordro!F17&\"                                                                                                    \"&Bordro!H17&\" - \"&Bordro!L17&\"/\"&Bordro!M17&\"                                                                                                    \"&Bordro!I17","v":"/                                                                                                     -                                                                                                      - /                                                                                                    "},null,{"$f":"TEXT(Bordro!D17,\"#.##0,00000000\")&\"                                                  \"&TEXT(Bordro!E17,\"#.##0,00000000\")&\"                                                  \"&IF(Bordro!J17=\"\",0,Bordro!J17)&\"                                                  \"&Bordro!K17","v":"0,00000000                                                  0,00000000                                                  0                                                  "},{"$f":"Hesap!E16&\"                                                                                                    \"&Hesap!D16&\"                                                                                                    \"&Hesap!F16&\"                                                                                                    \"&TEXT(Hesap!G16,\"#.##0,00\")","v":"0                                                                                                    0                                                                                                    0                                                                                                    0,00"},{"$f":"Hesap!I16&\"                                                                                                    \"&Hesap!H16&\"                                                                                                    \"&Hesap!J16&\"                                                                                                    \"&TEXT(Hesap!K16,\"#.##0,00\")","v":"0                                                                                                    0                                                                                                    0                                                                                                    0,00"},{"$f":"Hesap!M16&\"                                                                                                    \"&Hesap!L16&\"                                                                                                    \"&Hesap!N16&\"                                                                                                    \"&TEXT(Hesap!O16,\"#.##0,00\")","v":"0                                                                                                    0                                                                                                    0                                                                                                    0,00"},{"$f":"Hesap!Q16&\"                                                                                                    \"&Hesap!P16&\"                                                                                                    \"&Hesap!R16&\"                                                                                                    \"&TEXT(Hesap!S16,\"#.##0,00\")","v":"0                                                                                                    0                                                                                                    0                                                                                                    0,00"},{"$f":"TEXT(Hesap!X16,\"#.##0,00\")&\"                                                                                                    \"&TEXT(Hesap!W16,\"#.##0,00\")&\"                                                                                                    \"&TEXT(Hesap!Y16,\"#.##0,00\")&\"                                                                                                    \"&TEXT(Hesap!Z16,\"#.##0,00\")","v":"0,00                                                                                                    0,00                                                                                                    0,00                                                                                                    0,00"},{"$f":"TEXT(Hesap!AA16,\"#.##0,00\")&\"                                                                                                    \"&TEXT(Hesap!AB16,\"#.##0,00\")&\"                                                                                                    \"&TEXT(Hesap!AC16,\"#.##0,00\")&\"                                                                                                    \"&TEXT(Hesap!AE16,\"#.##0,00\")","v":"0,00                                                                                                    0,00                                                                                                    0,00                                                                                                    0,00"},{"$f":"IF(Hesap!AE16=0,0,1)","v":0}]
[{"$f":"Bordro!B18&\"/\"&Bordro!C18&\"                                                                                                    \"&Bordro!G18&\" - \"&Bordro!F18&\"                                                                                                    \"&Bordro!H18&\" - \"&Bordro!L18&\"/\"&Bordro!M18&\"                                                                                                    \"&Bordro!I18","v":"/                                                                                                     -                                                                                                      - /                                                                                                    "},null,{"$f":"TEXT(Bordro!D18,\"#.##0,00000000\")&\"                                                  \"&TEXT(Bordro!E18,\"#.##0,00000000\")&\"                                                  \"&IF(Bordro!J18=\"\",0,Bordro!J18)&\"                                                  \"&Bordro!K18","v":"0,00000000                                                  0,00000000                                                  0                                                  "},{"$f":"Hesap!E17&\"                                                                                                    \"&Hesap!D17&\"                                                                                                    \"&Hesap!F17&\"                                                                                                    \"&TEXT(Hesap!G17,\"#.##0,00\")","v":"0                                                                                                    0                                                                                                    0                                                                                                    0,00"},{"$f":"Hesap!I17&\"                                                                                                    \"&Hesap!H17&\"                                                                                                    \"&Hesap!J17&\"                                                                                                    \"&TEXT(Hesap!K17,\"#.##0,00\")","v":"0                                                                                                    0                                                                                                    0                                                                                                    0,00"},{"$f":"Hesap!M17&\"                                                                                                    \"&Hesap!L17&\"                                                                                                    \"&Hesap!N17&\"                                                                                                    \"&TEXT(Hesap!O17,\"#.##0,00\")","v":"0                                                                                                    0                                                                                                    0                                                                                                    0,00"},{"$f":"Hesap!Q17&\"                                                                                                    \"&Hesap!P17&\"                                                                                                    \"&Hesap!R17&\"                                                                                                    \"&TEXT(Hesap!S17,\"#.##0,00\")","v":"0                                                                                                    0                                                                                                    0                                                                                                    0,00"},{"$f":"TEXT(Hesap!X17,\"#.##0,00\")&\"                                                                                                    \"&TEXT(Hesap!W17,\"#.##0,00\")&\"                                                                                                    \"&TEXT(Hesap!Y17,\"#.##0,00\")&\"                                                                                                    \"&TEXT(Hesap!Z17,\"#.##0,00\")","v":"0,00                                                                                                    0,00                                                                                                    0,00                                                                                                    0,00"},{"$f":"TEXT(Hesap!AA17,\"#.##0,00\")&\"                                                                                                    \"&TEXT(Hesap!AB17,\"#.##0,00\")&\"                                                                                                    \"&TEXT(Hesap!AC17,\"#.##0,00\")&\"                                                                                                    \"&TEXT(Hesap!AE17,\"#.##0,00\")","v":"0,00                                                                                                    0,00                                                                                                    0,00                                                                                                    0,00"},{"$f":"IF(Hesap!AE17=0,0,1)","v":0}]
[{"$f":"Bordro!B19&\"/\"&Bordro!C19&\"                                                                                                    \"&Bordro!G19&\" - \"&Bordro!F19&\"                                                                                                    \"&Bordro!H19&\" - \"&Bordro!L19&\"/\"&Bordro!M19&\"                                                                                                    \"&Bordro!I19","v":"/                                                                                                     -                                                                                                      - /                                                                                                    "},null,{"$f":"TEXT(Bordro!D19,\"#.##0,00000000\")&\"                                                  \"&TEXT(Bordro!E19,\"#.##0,00000000\")&\"                                                  \"&IF(Bordro!J19=\"\",0,Bordro!J19)&\"                                                  \"&Bordro!K19","v":"0,00000000                                                  0,00000000                                                  0                                                  "},{"$f":"Hesap!E18&\"                                                                                                    \"&Hesap!D18&\"                                                                                                    \"&Hesap!F18&\"                                                                                                    \"&TEXT(Hesap!G18,\"#.##0,00\")","v":"0                                                                                                    0                                                                                                    0                                                                                                    0,00"},{"$f":"Hesap!I18&\"                                                                                                    \"&Hesap!H18&\"                                                                                                    \"&Hesap!J18&\"                                                                                                    \"&TEXT(Hesap!K18,\"#.##0,00\")","v":"0                                                                                                    0                                                                                                    0                                                                                                    0,00"},{"$f":"Hesap!M18&\"                                                                                                    \"&Hesap!L18&\"                                                                                                    \"&Hesap!N18&\"                                                                                                    \"&TEXT(Hesap!O18,\"#.##0,00\")","v":"0                                                                                                    0                                                                                                    0                                                                                                    0,00"},{"$f":"Hesap!Q18&\"                                                                                                    \"&Hesap!P18&\"                                                                                                    \"&Hesap!R18&\"                                                                                                    \"&TEXT(Hesap!S18,\"#.##0,00\")","v":"0                                                                                                    0                                                                                                    0                                                                                                    0,00"},{"$f":"TEXT(Hesap!X18,\"#.##0,00\")&\"                                                                                                    \"&TEXT(Hesap!W18,\"#.##0,00\")&\"                                                                                                    \"&TEXT(Hesap!Y18,\"#.##0,00\")&\"                                                                                                    \"&TEXT(Hesap!Z18,\"#.##0,00\")","v":"0,00                                                                                                    0,00                                                                                                    0,00                                                                                                    0,00"},{"$f":"TEXT(Hesap!AA18,\"#.##0,00\")&\"                                                                                                    \"&TEXT(Hesap!AB18,\"#.##0,00\")&\"                                                                                                    \"&TEXT(Hesap!AC18,\"#.##0,00\")&\"                                                                                                    \"&TEXT(Hesap!AE18,\"#.##0,00\")","v":"0,00                                                                                                    0,00                                                                                                    0,00                                                                                                    0,00"},{"$f":"IF(Hesap!AE18=0,0,1)","v":0}]
[{"$f":"Bordro!B20&\"/\"&Bordro!C20&\"                                                                                                    \"&Bordro!G20&\" - \"&Bordro!F20&\"                                                                                                    \"&Bordro!H20&\" - \"&Bordro!L20&\"/\"&Bordro!M20&\"                                                                                                    \"&Bordro!I20","v":"/                                                                                                     -                                                                                                      - /                                                                                                    "},null,{"$f":"TEXT(Bordro!D20,\"#.##0,00000000\")&\"                                                  \"&TEXT(Bordro!E20,\"#.##0,00000000\")&\"                                                  \"&IF(Bordro!J20=\"\",0,Bordro!J20)&\"                                                  \"&Bordro!K20","v":"0,00000000                                                  0,00000000                                                  0                                                  "},{"$f":"Hesap!E19&\"                                                                                                    \"&Hesap!D19&\"                                                                                                    \"&Hesap!F19&\"                                                                                                    \"&TEXT(Hesap!G19,\"#.##0,00\")","v":"0                                                                                                    0                                                                                                    0                                                                                                    0,00"},{"$f":"Hesap!I19&\"                                                                                                    \"&Hesap!H19&\"                                                                                                    \"&Hesap!J19&\"                                                                                                    \"&TEXT(Hesap!K19,\"#.##0,00\")","v":"0                                                                                                    0                                                                                                    0                                                                                                    0,00"},{"$f":"Hesap!M19&\"                                                                                                    \"&Hesap!L19&\"                                                                                                    \"&Hesap!N19&\"                                                                                                    \"&TEXT(Hesap!O19,\"#.##0,00\")","v":"0                                                                                                    0                                                                                                    0                                                                                                    0,00"},{"$f":"Hesap!Q19&\"                                                                                                    \"&Hesap!P19&\"                                                                                                    \"&Hesap!R19&\"                                                                                                    \"&TEXT(Hesap!S19,\"#.##0,00\")","v":"0                                                                                                    0                                                                                                    0                                                                                                    0,00"},{"$f":"TEXT(Hesap!X19,\"#.##0,00\")&\"                                                                                                    \"&TEXT(Hesap!W19,\"#.##0,00\")&\"                                                                                                    \"&TEXT(Hesap!Y19,\"#.##0,00\")&\"                                                                                                    \"&TEXT(Hesap!Z19,\"#.##0,00\")","v":"0,00                                                                                                    0,00                                                                                                    0,00                                                                                                    0,00"},{"$f":"TEXT(Hesap!AA19,\"#.##0,00\")&\"                                                                                                    \"&TEXT(Hesap!AB19,\"#.##0,00\")&\"                                                                                                    \"&TEXT(Hesap!AC19,\"#.##0,00\")&\"                                                                                                    \"&TEXT(Hesap!AE19,\"#.##0,00\")","v":"0,00                                                                                                    0,00                                                                                                    0,00                                                                                                    0,00"},{"$f":"IF(Hesap!AE19=0,0,1)","v":0}]
[{"$f":"Bordro!B21&\"/\"&Bordro!C21&\"                                                                                                    \"&Bordro!G21&\" - \"&Bordro!F21&\"                                                                                                    \"&Bordro!H21&\" - \"&Bordro!L21&\"/\"&Bordro!M21&\"                                                                                                    \"&Bordro!I21","v":"/                                                                                                     -                                                                                                      - /                                                                                                    "},null,{"$f":"TEXT(Bordro!D21,\"#.##0,00000000\")&\"                                                  \"&TEXT(Bordro!E21,\"#.##0,00000000\")&\"                                                  \"&IF(Bordro!J21=\"\",0,Bordro!J21)&\"                                                  \"&Bordro!K21","v":"0,00000000                                                  0,00000000                                                  0                                                  "},{"$f":"Hesap!E20&\"                                                                                                    \"&Hesap!D20&\"                                                                                                    \"&Hesap!F20&\"                                                                                                    \"&TEXT(Hesap!G20,\"#.##0,00\")","v":"0                                                                                                    0                                                                                                    0                                                                                                    0,00"},{"$f":"Hesap!I20&\"                                                                                                    \"&Hesap!H20&\"                                                                                                    \"&Hesap!J20&\"                                                                                                    \"&TEXT(Hesap!K20,\"#.##0,00\")","v":"0                                                                                                    0                                                                                                    0                                                                                                    0,00"},{"$f":"Hesap!M20&\"                                                                                                    \"&Hesap!L20&\"                                                                                                    \"&Hesap!N20&\"                                                                                                    \"&TEXT(Hesap!O20,\"#.##0,00\")","v":"0                                                                                                    0                                                                                                    0                                                                                                    0,00"},{"$f":"Hesap!Q20&\"                                                                                                    \"&Hesap!P20&\"                                                                                                    \"&Hesap!R20&\"                                                                                                    \"&TEXT(Hesap!S20,\"#.##0,00\")","v":"0                                                                                                    0                                                                                                    0                                                                                                    0,00"},{"$f":"TEXT(Hesap!X20,\"#.##0,00\")&\"                                                                                                    \"&TEXT(Hesap!W20,\"#.##0,00\")&\"                                                                                                    \"&TEXT(Hesap!Y20,\"#.##0,00\")&\"                                                                                                    \"&TEXT(Hesap!Z20,\"#.##0,00\")","v":"0,00                                                                                                    0,00                                                                                                    0,00                                                                                                    0,00"},{"$f":"TEXT(Hesap!AA20,\"#.##0,00\")&\"                                                                                                    \"&TEXT(Hesap!AB20,\"#.##0,00\")&\"                                                                                                    \"&TEXT(Hesap!AC20,\"#.##0,00\")&\"                                                                                                    \"&TEXT(Hesap!AE20,\"#.##0,00\")","v":"0,00                                                                                                    0,00                                                                                                    0,00                                                                                                    0,00"},{"$f":"IF(Hesap!AE20=0,0,1)","v":0}]
[{"$f":"Bordro!B22&\"/\"&Bordro!C22&\"                                                                                                    \"&Bordro!G22&\" - \"&Bordro!F22&\"                                                                                                    \"&Bordro!H22&\" - \"&Bordro!L22&\"/\"&Bordro!M22&\"                                                                                                    \"&Bordro!I22","v":"/                                                                                                     -                                                                                                      - /                                                                                                    "},null,{"$f":"TEXT(Bordro!D22,\"#.##0,00000000\")&\"                                                  \"&TEXT(Bordro!E22,\"#.##0,00000000\")&\"                                                  \"&IF(Bordro!J22=\"\",0,Bordro!J22)&\"                                                  \"&Bordro!K22","v":"0,00000000                                                  0,00000000                                                  0                                                  "},{"$f":"Hesap!E21&\"                                                                                                    \"&Hesap!D21&\"                                                                                                    \"&Hesap!F21&\"                                                                                                    \"&TEXT(Hesap!G21,\"#.##0,00\")","v":"0                                                                                                    0                                                                                                    0                                                                                                    0,00"},{"$f":"Hesap!I21&\"                                                                                                    \"&Hesap!H21&\"                                                                                                    \"&Hesap!J21&\"                                                                                                    \"&TEXT(Hesap!K21,\"#.##0,00\")","v":"0                                                                                                    0                                                                                                    0                                                                                                    0,00"},{"$f":"Hesap!M21&\"                                                                                                    \"&Hesap!L21&\"                                                                                                    \"&Hesap!N21&\"                                                                                                    \"&TEXT(Hesap!O21,\"#.##0,00\")","v":"0                                                                                                    0                                                                                                    0                                                                                                    0,00"},{"$f":"Hesap!Q21&\"                                                                                                    \"&Hesap!P21&\"                                                                                                    \"&Hesap!R21&\"                                                                                                    \"&TEXT(Hesap!S21,\"#.##0,00\")","v":"0                                                                                                    0                                                                                                    0                                                                                                    0,00"},{"$f":"TEXT(Hesap!X21,\"#.##0,00\")&\"                                                                                                    \"&TEXT(Hesap!W21,\"#.##0,00\")&\"                                                                                                    \"&TEXT(Hesap!Y21,\"#.##0,00\")&\"                                                                                                    \"&TEXT(Hesap!Z21,\"#.##0,00\")","v":"0,00                                                                                                    0,00                                                                                                    0,00                                                                                                    0,00"},{"$f":"TEXT(Hesap!AA21,\"#.##0,00\")&\"                                                                                                    \"&TEXT(Hesap!AB21,\"#.##0,00\")&\"                                                                                                    \"&TEXT(Hesap!AC21,\"#.##0,00\")&\"                                                                                                    \"&TEXT(Hesap!AE21,\"#.##0,00\")","v":"0,00                                                                                                    0,00                                                                                                    0,00                                                                                                    0,00"},{"$f":"IF(Hesap!AE21=0,0,1)","v":0}]
[{"$f":"Bordro!B23&\"/\"&Bordro!C23&\"                                                                                                    \"&Bordro!G23&\" - \"&Bordro!F23&\"                                                                                                    \"&Bordro!H23&\" - \"&Bordro!L23&\"/\"&Bordro!M23&\"                                                                                                    \"&Bordro!I23","v":"/                                                                                                     -                                                                                                      - /                                                                                                    "},null,{"$f":"TEXT(Bordro!D23,\"#.##0,00000000\")&\"                                                  \"&TEXT(Bordro!E23,\"#.##0,00000000\")&\"                                                  \"&IF(Bordro!J23=\"\",0,Bordro!J23)&\"                                                  \"&Bordro!K23","v":"0,00000000                                                  0,00000000                                                  0                                                  "},{"$f":"Hesap!E22&\"                                                                                                    \"&Hesap!D22&\"                                                                                                    \"&Hesap!F22&\"                                                                                                    \"&TEXT(Hesap!G22,\"#.##0,00\")","v":"0                                                                                                    0                                                                                                    0                                                                                                    0,00"},{"$f":"Hesap!I22&\"                                                                                                    \"&Hesap!H22&\"                                                                                                    \"&Hesap!J22&\"                                                                                                    \"&TEXT(Hesap!K22,\"#.##0,00\")","v":"0                                                                                                    0                                                                                                    0                                                                                                    0,00"},{"$f":"Hesap!M22&\"                                                                                                    \"&Hesap!L22&\"                                                                                                    \"&Hesap!N22&\"                                                                                                    \"&TEXT(Hesap!O22,\"#.##0,00\")","v":"0                                                                                                    0                                                                                                    0                                                                                                    0,00"},{"$f":"Hesap!Q22&\"                                                                                                    \"&Hesap!P22&\"                                                                                                    \"&Hesap!R22&\"                                                                                                    \"&TEXT(Hesap!S22,\"#.##0,00\")","v":"0                                                                                                    0                                                                                                    0                                                                                                    0,00"},{"$f":"TEXT(Hesap!X22,\"#.##0,00\")&\"                                                                                                    \"&TEXT(Hesap!W22,\"#.##0,00\")&\"                                                                                                    \"&TEXT(Hesap!Y22,\"#.##0,00\")&\"                                                                                                    \"&TEXT(Hesap!Z22,\"#.##0,00\")","v":"0,00                                                                                                    0,00                                                                                                    0,00                                                                                                    0,00"},{"$f":"TEXT(Hesap!AA22,\"#.##0,00\")&\"                                                                                                    \"&TEXT(Hesap!AB22,\"#.##0,00\")&\"                                                                                                    \"&TEXT(Hesap!AC22,\"#.##0,00\")&\"                                                                                                    \"&TEXT(Hesap!AE22,\"#.##0,00\")","v":"0,00                                                                                                    0,00                                                                                                    0,00                                                                                                    0,00"},{"$f":"IF(Hesap!AE22=0,0,1)","v":0}]
[{"$f":"Bordro!B24&\"/\"&Bordro!C24&\"                                                                                                    \"&Bordro!G24&\" - \"&Bordro!F24&\"                                                                                                    \"&Bordro!H24&\" - \"&Bordro!L24&\"/\"&Bordro!M24&\"                                                                                                    \"&Bordro!I24","v":"/                                                                                                     -                                                                                                      - /                                                                                                    "},null,{"$f":"TEXT(Bordro!D24,\"#.##0,00000000\")&\"                                                  \"&TEXT(Bordro!E24,\"#.##0,00000000\")&\"                                                  \"&IF(Bordro!J24=\"\",0,Bordro!J24)&\"                                                  \"&Bordro!K24","v":"0,00000000                                                  0,00000000                                                  0                                                  "},{"$f":"Hesap!E23&\"                                                                                                    \"&Hesap!D23&\"                                                                                                    \"&Hesap!F23&\"                                                                                                    \"&TEXT(Hesap!G23,\"#.##0,00\")","v":"0                                                                                                    0                                                                                                    0                                                                                                    0,00"},{"$f":"Hesap!I23&\"                                                                                                    \"&Hesap!H23&\"                                                                                                    \"&Hesap!J23&\"                                                                                                    \"&TEXT(Hesap!K23,\"#.##0,00\")","v":"0                                                                                                    0                                                                                                    0                                                                                                    0,00"},{"$f":"Hesap!M23&\"                                                                                                    \"&Hesap!L23&\"                                                                                                    \"&Hesap!N23&\"                                                                                                    \"&TEXT(Hesap!O23,\"#.##0,00\")","v":"0                                                                                                    0                                                                                                    0                                                                                                    0,00"},{"$f":"Hesap!Q23&\"                                                                                                    \"&Hesap!P23&\"                                                                                                    \"&Hesap!R23&\"                                                                                                    \"&TEXT(Hesap!S23,\"#.##0,00\")","v":"0                                                                                                    0                                                                                                    0                                                                                                    0,00"},{"$f":"TEXT(Hesap!X23,\"#.##0,00\")&\"                                                                                                    \"&TEXT(Hesap!W23,\"#.##0,00\")&\"                                                                                                    \"&TEXT(Hesap!Y23,\"#.##0,00\")&\"                                                                                                    \"&TEXT(Hesap!Z23,\"#.##0,00\")","v":"0,00                                                                                                    0,00                                                                                                    0,00                                                                                                    0,00"},{"$f":"TEXT(Hesap!AA23,\"#.##0,00\")&\"                                                                                                    \"&TEXT(Hesap!AB23,\"#.##0,00\")&\"                                                                                                    \"&TEXT(Hesap!AC23,\"#.##0,00\")&\"                                                                                                    \"&TEXT(Hesap!AE23,\"#.##0,00\")","v":"0,00                                                                                                    0,00                                                                                                    0,00                                                                                                    0,00"},{"$f":"IF(Hesap!AE23=0,0,1)","v":0}]
[{"$f":"Bordro!B25&\"/\"&Bordro!C25&\"                                                                                                    \"&Bordro!G25&\" - \"&Bordro!F25&\"                                                                                                    \"&Bordro!H25&\" - \"&Bordro!L25&\"/\"&Bordro!M25&\"                                                                                                    \"&Bordro!I25","v":"/                                                                                                     -                                                                                                      - /                                                                                                    "},null,{"$f":"TEXT(Bordro!D25,\"#.##0,00000000\")&\"                                                  \"&TEXT(Bordro!E25,\"#.##0,00000000\")&\"                                                  \"&IF(Bordro!J25=\"\",0,Bordro!J25)&\"                                                  \"&Bordro!K25","v":"0,00000000                                                  0,00000000                                                  0                                                  "},{"$f":"Hesap!E24&\"                                                                                                    \"&Hesap!D24&\"                                                                                                    \"&Hesap!F24&\"                                                                                                    \"&TEXT(Hesap!G24,\"#.##0,00\")","v":"0                                                                                                    0                                                                                                    0                                                                                                    0,00"},{"$f":"Hesap!I24&\"                                                                                                    \"&Hesap!H24&\"                                                                                                    \"&Hesap!J24&\"                                                                                                    \"&TEXT(Hesap!K24,\"#.##0,00\")","v":"0                                                                                                    0                                                                                                    0                                                                                                    0,00"},{"$f":"Hesap!M24&\"                                                                                                    \"&Hesap!L24&\"                                                                                                    \"&Hesap!N24&\"                                                                                                    \"&TEXT(Hesap!O24,\"#.##0,00\")","v":"0                                                                                                    0                                                                                                    0                                                                                                    0,00"},{"$f":"Hesap!Q24&\"                                                                                                    \"&Hesap!P24&\"                                                                                                    \"&Hesap!R24&\"                                                                                                    \"&TEXT(Hesap!S24,\"#.##0,00\")","v":"0                                                                                                    0                                                                                                    0                                                                                                    0,00"},{"$f":"TEXT(Hesap!X24,\"#.##0,00\")&\"                                                                                                    \"&TEXT(Hesap!W24,\"#.##0,00\")&\"                                                                                                    \"&TEXT(Hesap!Y24,\"#.##0,00\")&\"                                                                                                    \"&TEXT(Hesap!Z24,\"#.##0,00\")","v":"0,00                                                                                                    0,00                                                                                                    0,00                                                                                                    0,00"},{"$f":"TEXT(Hesap!AA24,\"#.##0,00\")&\"                                                                                                    \"&TEXT(Hesap!AB24,\"#.##0,00\")&\"                                                                                                    \"&TEXT(Hesap!AC24,\"#.##0,00\")&\"                                                                                                    \"&TEXT(Hesap!AE24,\"#.##0,00\")","v":"0,00                                                                                                    0,00                                                                                                    0,00                                                                                                    0,00"},{"$f":"IF(Hesap!AE24=0,0,1)","v":0}]
[{"$f":"Bordro!B26&\"/\"&Bordro!C26&\"                                                                                                    \"&Bordro!G26&\" - \"&Bordro!F26&\"                                                                                                    \"&Bordro!H26&\" - \"&Bordro!L26&\"/\"&Bordro!M26&\"                                                                                                    \"&Bordro!I26","v":"/                                                                                                     -                                                                                                      - /                                                                                                    "},null,{"$f":"TEXT(Bordro!D26,\"#.##0,00000000\")&\"                                                  \"&TEXT(Bordro!E26,\"#.##0,00000000\")&\"                                                  \"&IF(Bordro!J26=\"\",0,Bordro!J26)&\"                                                  \"&Bordro!K26","v":"0,00000000                                                  0,00000000                                                  0                                                  "},{"$f":"Hesap!E25&\"                                                                                                    \"&Hesap!D25&\"                                                                                                    \"&Hesap!F25&\"                                                                                                    \"&TEXT(Hesap!G25,\"#.##0,00\")","v":"0                                                                                                    0                                                                                                    0                                                                                                    0,00"},{"$f":"Hesap!I25&\"                                                                                                    \"&Hesap!H25&\"                                                                                                    \"&Hesap!J25&\"                                                                                                    \"&TEXT(Hesap!K25,\"#.##0,00\")","v":"0                                                                                                    0                                                                                                    0                                                                                                    0,00"},{"$f":"Hesap!M25&\"                                                                                                    \"&Hesap!L25&\"                                                                                                    \"&Hesap!N25&\"                                                                                                    \"&TEXT(Hesap!O25,\"#.##0,00\")","v":"0                                                                                                    0                                                                                                    0                                                                                                    0,00"},{"$f":"Hesap!Q25&\"                                                                                                    \"&Hesap!P25&\"                                                                                                    \"&Hesap!R25&\"                                                                                                    \"&TEXT(Hesap!S25,\"#.##0,00\")","v":"0                                                                                                    0                                                                                                    0                                                                                                    0,00"},{"$f":"TEXT(Hesap!X25,\"#.##0,00\")&\"                                                                                                    \"&TEXT(Hesap!W25,\"#.##0,00\")&\"                                                                                                    \"&TEXT(Hesap!Y25,\"#.##0,00\")&\"                                                                                                    \"&TEXT(Hesap!Z25,\"#.##0,00\")","v":"0,00                                                                                                    0,00                                                                                                    0,00                                                                                                    0,00"},{"$f":"TEXT(Hesap!AA25,\"#.##0,00\")&\"                                                                                                    \"&TEXT(Hesap!AB25,\"#.##0,00\")&\"                                                                                                    \"&TEXT(Hesap!AC25,\"#.##0,00\")&\"                                                                                                    \"&TEXT(Hesap!AE25,\"#.##0,00\")","v":"0,00                                                                                                    0,00                                                                                                    0,00                                                                                                    0,00"},{"$f":"IF(Hesap!AE25=0,0,1)","v":0}]
[{"$f":"Bordro!B27&\"/\"&Bordro!C27&\"                                                                                                    \"&Bordro!G27&\" - \"&Bordro!F27&\"                                                                                                    \"&Bordro!H27&\" - \"&Bordro!L27&\"/\"&Bordro!M27&\"                                                                                                    \"&Bordro!I27","v":"/                                                                                                     -                                                                                                      - /                                                                                                    "},null,{"$f":"TEXT(Bordro!D27,\"#.##0,00000000\")&\"                                                  \"&TEXT(Bordro!E27,\"#.##0,00000000\")&\"                                                  \"&IF(Bordro!J27=\"\",0,Bordro!J27)&\"                                                  \"&Bordro!K27","v":"0,00000000                                                  0,00000000                                                  0                                                  "},{"$f":"Hesap!E26&\"                                                                                                    \"&Hesap!D26&\"                                                                                                    \"&Hesap!F26&\"                                                                                                    \"&TEXT(Hesap!G26,\"#.##0,00\")","v":"0                                                                                                    0                                                                                                    0                                                                                                    0,00"},{"$f":"Hesap!I26&\"                                                                                                    \"&Hesap!H26&\"                                                                                                    \"&Hesap!J26&\"                                                                                                    \"&TEXT(Hesap!K26,\"#.##0,00\")","v":"0                                                                                                    0                                                                                                    0                                                                                                    0,00"},{"$f":"Hesap!M26&\"                                                                                                    \"&Hesap!L26&\"                                                                                                    \"&Hesap!N26&\"                                                                                                    \"&TEXT(Hesap!O26,\"#.##0,00\")","v":"0                                                                                                    0                                                                                                    0                                                                                                    0,00"},{"$f":"Hesap!Q26&\"                                                                                                    \"&Hesap!P26&\"                                                                                                    \"&Hesap!R26&\"                                                                                                    \"&TEXT(Hesap!S26,\"#.##0,00\")","v":"0                                                                                                    0                                                                                                    0                                                                                                    0,00"},{"$f":"TEXT(Hesap!X26,\"#.##0,00\")&\"                                                                                                    \"&TEXT(Hesap!W26,\"#.##0,00\")&\"                                                                                                    \"&TEXT(Hesap!Y26,\"#.##0,00\")&\"                                                                                                    \"&TEXT(Hesap!Z26,\"#.##0,00\")","v":"0,00                                                                                                    0,00                                                                                                    0,00                                                                                                    0,00"},{"$f":"TEXT(Hesap!AA26,\"#.##0,00\")&\"                                                                                                    \"&TEXT(Hesap!AB26,\"#.##0,00\")&\"                                                                                                    \"&TEXT(Hesap!AC26,\"#.##0,00\")&\"                                                                                                    \"&TEXT(Hesap!AE26,\"#.##0,00\")","v":"0,00                                                                                                    0,00                                                                                                    0,00                                                                                                    0,00"},{"$f":"IF(Hesap!AE26=0,0,1)","v":0}]
["BORDRO\nTOPLAMLARI",null,null,{"$f":"Hesap!E27&\"                                                                                                    \"&Hesap!D27&\"                                                                                                    \"&Hesap!F27&\"                                                                                                    \"&TEXT(Hesap!G27,\"#.##0,00\")","v":"0                                                                                                    0                                                                                                    0                                                                                                    0,00"},{"$f":"Hesap!I27&\"                                                                                                    \"&Hesap!H27&\"                                                                                                    \"&Hesap!J27&\"                                                                                                    \"&TEXT(Hesap!K27,\"#.##0,00\")","v":"0                                                                                                    0                                                                                                    0                                                                                                    0,00"},{"$f":"Hesap!M27&\"                                                                                                    \"&Hesap!L27&\"                                                                                                    \"&Hesap!N27&\"                                                                                                    \"&TEXT(Hesap!O27,\"#.##0,00\")","v":"0                                                                                                    0                                                                                                    0                                                                                                    0,00"},{"$f":"Hesap!Q27&\"                                                                                                    \"&Hesap!P27&\"                                                                                                    \"&Hesap!R27&\"                                                                                                    \"&TEXT(Hesap!S27,\"#.##0,00\")","v":"0                                                                                                    0                                                                                                    0                                                                                                    0,00"},{"$f":"TEXT(Hesap!X27,\"#.##0,00\")&\"                                                                                                    \"&TEXT(Hesap!W27,\"#.##0,00\")&\"                                                                                                    \"&TEXT(Hesap!Y27,\"#.##0,00\")&\"                                                                                                    \"&TEXT(Hesap!Z27,\"#.##0,00\")","v":"0,00                                                                                                    0,00                                                                                                    0,00                                                                                                    0,00"},{"$f":"TEXT(Hesap!AA27,\"#.##0,00\")&\"                                                                                                    \"&TEXT(Hesap!AB27,\"#.##0,00\")&\"                                                                                                    \"&TEXT(Hesap!AC27,\"#.##0,00\")&\"                                                                                                    \"&TEXT(Hesap!AE27,\"#.##0,00\")","v":"0,00                                                                                                    0,00                                                                                                    0,00                                                                                                    0,00"},1]
[{"$f":"\"Müdürlüğümüz personeli/Personellerine ilgili ay/aylarda \"&TEXT(Hesap!AA27,\"#.##0,00\")&\" TL. (\"&Hesap!C30&\") tahakkuk ettirilmiştir.\"&\" \"&TEXT(TODAY(),\"gg/aa/yyyy\")","v":"Müdürlüğümüz personeli/Personellerine ilgili ay/aylarda 0,00 TL. () tahakkuk ettirilmiştir. 15/04/2024"},null,null,null,null,null,null,null,null,1]
[null,null,null,null,null,null,null,null,null,1]
[null,{"$f":"IF(B31=\"\",\"\",\"Düzenleyen\")","v":"Düzenleyen"},{"$f":"IF(C31=\"\",\"\",\"Onaylayan\")","v":"Onaylayan"},null,null,null,null,null,null,1]
[null,null,null,null,null,null,null,null,null,1]
[null,{"$f":"IF(Bordro!V3=\"\",\"\",Bordro!V3)","v":"Ziya KILINÇ"},{"$f":"IF(Bordro!V4=\"\",\"\",Bordro!V4)","v":"Abdurrahman BUCAK"},null,null,null,null,null,null,1]
[null,{"$f":"IF(B31=\"\",\"\",Bordro!Z3)","v":"Şef"},{"$f":"IF(C31=\"\",\"\",Bordro!Z4)","v":"Şube Müdürü"},null,null,null,null,null,null,1]

{"sheet":"Banka","index":3,"n_rows":30,"n_cols":15,"rows_kept":30,"cut":false,"hidden":true,"merged":[[14,2,14,3],[15,2,15,3],[16,2,16,3],[17,2,17,3],[18,2,18,3],[19,2,19,3],[20,2,20,3],[21,2,21,3],[22,2,22,3],[23,2,23,3],[10,2,10,3],[11,2,11,3],[12,2,12,3],[13,2,13,3],[4,2,4,3],[5,2,5,3],[6,2,6,3],[7,2,7,3],[8,2,8,3],[9,2,9,3],[26,0,26,1],[27,0,27,1],[28,0,28,1],[29,0,29,1],[26,2,26,3],[27,2,27,3],[28,2,28,3],[29,2,29,3],[20,4,20,5],[21,4,21,5],[22,4,22,5],[23,4,23,5],[24,0,24,5],[0,0,0,6],[3,4,3,5],[4,4,4,5],[5,4,5,5],[6,4,6,5],[2,0,2,1],[2,2,2,6],[3,2,3,3],[7,4,7,5],[8,4,8,5],[9,4,9,5],[10,4,10,5],[11,4,11,5],[17,4,17,5],[18,4,18,5],[19,4,19,5],[12,4,12,5],[13,4,13,5],[14,4,14,5],[15,4,15,5],[16,4,16,5]]}
["BANKA ÖDEME NÜSHASI",null,null,null,null,null,null,1]
[null,null,null,null,null,null,null,1]
["Birim Adı",null,{"$f":"Bordro!M4","v":"İlçe Milli Eğitim Müdürlüğü"},null,null,null,null,1]
["S. No","Kimlik No","Adı Soyadı",null,"IBAN No",null,"Tutar",1,null,null,"Kimlik No","Adı Soyadı","IBAN No","Ücret","Tutar"]
[{"$f":"IF(H5=1,1,0)","v":{"$error":"#N/A"}},{"$f":"List!J1","v":22807836354},{"$f":"INDEX($K$4:$O$24,MATCH(B5,$K$4:$K$24,),MATCH($C$4,$K$4:$O$4,))","v":{"$error":"#N/A"}},null,{"$f":"INDEX($K$4:$O$24,MATCH(B5,$K$4:$K$24,),MATCH($E$4,$K$4:$O$4,))","v":{"$error":"#N/A"}},null,{"$f":"INDEX($K$4:$O$24,MATCH(B5,$K$4:$K$24,),MATCH($G$4,$K$4:$O$4,))","v":{"$error":"#N/A"}},{"$f":"IF(G5=0,0,1)","v":{"$error":"#N/A"}},null,null,{"$f":"Bordro!G8","v":0},{"$f":"Bordro!F8","v":0},{"$f":"Bordro!I8","v":0},{"$f":"Hesap!AE7","v":0},{"$f":"SUMIF($K$5:$K$24,K5,$N$5:$N$24)","v":0}]
[{"$f":"IF(H6=1,A5+1,A5)","v":{"$error":"#N/A"}},{"$f":"List!J2","v":0},{"$f":"INDEX($K$4:$O$24,MATCH(B6,$K$4:$K$24,),MATCH($C$4,$K$4:$O$4,))","v":0},null,{"$f":"INDEX($K$4:$O$24,MATCH(B6,$K$4:$K$24,),MATCH($E$4,$K$4:$O$4,))","v":0},null,{"$f":"INDEX($K$4:$O$24,MATCH(B6,$K$4:$K$24,),MATCH($G$4,$K$4:$O$4,))","v":0},{"$f":"IF(G6=0,0,1)","v":0},null,null,{"$f":"Bordro!G9","v":0},{"$f":"Bordro!F9","v":0},{"$f":"Bordro!I9","v":0},{"$f":"Hesap!AE8","v":0},{"$f":"SUMIF($K$5:$K$24,K6,$N$5:$N$24)","v":0}]
[{"$f":"IF(H7=1,A6+1,A6)","v":{"$error":"#N/A"}},{"$f":"List!J3","v":0},0,null,0,null,0,0,null,null,{"$f":"Bordro!G10","v":0},{"$f":"Bordro!F10","v":0},{"$f":"Bordro!I10","v":0},{"$f":"Hesap!AE9","v":0},0]
[{"$error":"#N/A"},{"$f":"List!J4","v":0},0,null,0,null,0,0,null,null,{"$f":"Bordro!G11","v":0},{"$f":"Bordro!F11","v":0},{"$f":"Bordro!I11","v":0},{"$f":"Hesap!AE10","v":0},0]
[{"$error":"#N/A"},{"$f":"List!J5","v":0},0,null,0,null,0,0,null,null,{"$f":"Bordro!G12","v":0},{"$f":"Bordro!F12","v":0},{"$f":"Bordro!I12","v":0},{"$f":"Hesap!AE11","v":0},0]
[{"$error":"#N/A"},{"$f":"List!J6","v":0},0,null,0,null,0,0,null,null,{"$f":"Bordro!G13","v":0},{"$f":"Bordro!F13","v":0},{"$f":"Bordro!I13","v":0},{"$f":"Hesap!AE12","v":0},0]
[{"$error":"#N/A"},{"$f":"List!J7","v":0},0,null,0,null,0,0,null,null,{"$f":"Bordro!G14","v":0},{"$f":"Bordro!F14","v":0},{"$f":"Bordro!I14","v":0},{"$f":"Hesap!AE13","v":0},0]
[{"$error":"#N/A"},{"$f":"List!J8","v":0},0,null,0,null,0,0,null,null,{"$f":"Bordro!G15","v":0},{"$f":"Bordro!F15","v":0},{"$f":"Bordro!I15","v":0},{"$f":"Hesap!AE14","v":0},0]
[{"$error":"#N/A"},{"$f":"List!J9","v":0},0,null,0,null,0,0,null,null,{"$f":"Bordro!G16","v":0},{"$f":"Bordro!F16","v":0},{"$f":"Bordro!I16","v":0},{"$f":"Hesap!AE15","v":0},0]
[{"$error":"#N/A"},{"$f":"List!J10","v":0},0,null,0,null,0,0,null,null,{"$f":"Bordro!G17","v":0},{"$f":"Bordro!F17","v":0},{"$f":"Bordro!I17","v":0},{"$f":"Hesap!AE16","v":0},0]
[{"$error":"#N/A"},{"$f":"List!J11","v":0},0,null,0,null,0,0,null,null,{"$f":"Bordro!G18","v":0},{"$f":"Bordro!F18","v":0},{"$f":"Bordro!I18","v":0},{"$f":"Hesap!AE17","v":0},0]
[{"$error":"#N/A"},{"$f":"List!J12","v":0},0,null,0,null,0,0,null,null,{"$f":"Bordro!G19","v":0},{"$f":"Bordro!F19","v":0},{"$f":"Bordro!I19","v":0},{"$f":"Hesap!AE18","v":0},0]
[{"$error":"#N/A"},{"$f":"List!J13","v":0},0,null,0,null,0,0,null,null,{"$f":"Bordro!G20","v":0},{"$f":"Bordro!F20","v":0},{"$f":"Bordro!I20","v":0},{"$f":"Hesap!AE19","v":0},0]
[{"$error":"#N/A"},{"$f":"List!J14","v":0},0,null,0,null,0,0,null,null,{"$f":"Bordro!G21","v":0},{"$f":"Bordro!F21","v":0},{"$f":"Bordro!I21","v":0},{"$f":"Hesap!AE20","v":0},0]
[{"$error":"#N/A"},{"$f":"List!J15","v":0},0,null,0,null,0,0,null,null,{"$f":"Bordro!G22","v":0},{"$f":"Bordro!F22","v":0},{"$f":"Bordro!I22","v":0},{"$f":"Hesap!AE21","v":0},0]
[{"$error":"#N/A"},{"$f":"List!J16","v":0},0,null,0,null,0,0,null,null,{"$f":"Bordro!G23","v":0},{"$f":"Bordro!F23","v":0},{"$f":"Bordro!I23","v":0},{"$f":"Hesap!AE22","v":0},0]
[{"$error":"#N/A"},{"$f":"List!J17","v":0},0,null,0,null,0,0,null,null,{"$f":"Bordro!G24","v":0},{"$f":"Bordro!F24","v":0},{"$f":"Bordro!I24","v":0},{"$f":"Hesap!AE23","v":0},0]
[{"$error":"#N/A"},{"$f":"List!J18","v":0},0,null,0,null,0,0,null,null,{"$f":"Bordro!G25","v":0},{"$f":"Bordro!F25","v":0},{"$f":"Bordro!I25","v":0},{"$f":"Hesap!AE24","v":0},0]
[{"$error":"#N/A"},{"$f":"List!J19","v":0},0,null,0,null,0,0,null,null,{"$f":"Bordro!G26","v":0},{"$f":"Bordro!F26","v":0},{"$f":"Bordro!I26","v":0},{"$f":"Hesap!AE25","v":0},0]
[{"$error":"#N/A"},{"$f":"List!J20","v":0},0,null,0,null,0,0,null,null,{"$f":"Bordro!G27","v":0},{"$f":"Bordro!F27","v":0},{"$f":"Bordro!I27","v":0},{"$f":"Hesap!AE26","v":0},0]
["TOPLAM",null,null,null,null,null,{"$f":"SUM(G5:G24)","v":{"$error":"#N/A"}},1]
[null,null,null,null,null,null,null,1]
["Düzenleyen",null,"Onaylayan",null,null,null,null,1]
[null,null,null,null,null,null,null,1]
[{"$f":"Bordro!V3","v":"Ziya KILINÇ"},null,{"$f":"Bordro!V4","v":"Abdurrahman BUCAK"},null,null,null,null,1]
[{"$f":"Bordro!Z3","v":"Şef"},null,{"$f":"Bordro!Z4","v":"Şube Müdürü"},null,null,null,null,1]

{"sheet":"List","index":4,"n_rows":20,"n_cols":10,"rows_kept":20,"cut":false,"hidden":true,"merged":[]}
[{"$f":"Bordro!G8","v":0},{"$f":"Bordro!F8","v":0},{"$f":"Bordro!I8","v":0},{"$f":"IF(J1=0,0,IF(J1=\"\",0,COUNTIF($A$1:$A$20,J1)))","v":0},{"$f":"COUNTA(Bordro!G8:G27)","v":0},{"$f":"IF(D1=E1,1,2)","v":1},null,null,null,22807836354]
[{"$f":"Bordro!G9","v":0},{"$f":"Bordro!F9","v":0},{"$f":"Bordro!I9","v":0},{"$f":"IF(J2=0,0,IF(J2=\"\",0,COUNTIF($A$1:$A$20,J2)))","v":0},null,null,null,null,null,0]
[{"$f":"Bordro!G10","v":0},{"$f":"Bordro!F10","v":0},{"$f":"Bordro!I10","v":0},{"$f":"IF(J3=0,0,IF(J3=\"\",0,COUNTIF($A$1:$A$20,J3)))","v":0}]
[{"$f":"Bordro!G11","v":0},{"$f":"Bordro!F11","v":0},{"$f":"Bordro!I11","v":0},{"$f":"IF(J4=0,0,IF(J4=\"\",0,COUNTIF($A$1:$A$20,J4)))","v":0}]
[{"$f":"Bordro!G12","v":0},{"$f":"Bordro!F12","v":0},{"$f":"Bordro!I12","v":0},0]
[{"$f":"Bordro!G13","v":0},{"$f":"Bordro!F13","v":0},{"$f":"Bordro!I13","v":0},0]
[{"$f":"Bordro!G14","v":0},{"$f":"Bordro!F14","v":0},{"$f":"Bordro!I14","v":0},0]
[{"$f":"Bordro!G15","v":0},{"$f":"Bordro!F15","v":0},{"$f":"Bordro!I15","v":0},0]
[{"$f":"Bordro!G16","v":0},{"$f":"Bordro!F16","v":0},{"$f":"Bordro!I16","v":0},0]
[{"$f":"Bordro!G17","v":0},{"$f":"Bordro!F17","v":0},{"$f":"Bordro!I17","v":0},0]
[{"$f":"Bordro!G18","v":0},{"$f":"Bordro!F18","v":0},{"$f":"Bordro!I18","v":0},0]
[{"$f":"Bordro!G19","v":0},{"$f":"Bordro!F19","v":0},{"$f":"Bordro!I19","v":0},0]
[{"$f":"Bordro!G20","v":0},{"$f":"Bordro!F20","v":0},{"$f":"Bordro!I20","v":0},0]
[{"$f":"Bordro!G21","v":0},{"$f":"Bordro!F21","v":0},{"$f":"Bordro!I21","v":0},0]
[{"$f":"Bordro!G22","v":0},{"$f":"Bordro!F22","v":0},{"$f":"Bordro!I22","v":0},0]
[{"$f":"Bordro!G23","v":0},{"$f":"Bordro!F23","v":0},{"$f":"Bordro!I23","v":0},0]
[{"$f":"Bordro!G24","v":0},{"$f":"Bordro!F24","v":0},{"$f":"Bordro!I24","v":0},0]
[{"$f":"Bordro!G25","v":0},{"$f":"Bordro!F25","v":0},{"$f":"Bordro!I25","v":0},0]
[{"$f":"Bordro!G26","v":0},{"$f":"Bordro!F26","v":0},{"$f":"Bordro!I26","v":0},0]
[{"$f":"Bordro!G27","v":0},{"$f":"Bordro!F27","v":0},{"$f":"Bordro!I27","v":0},0]

{"sheet":"oeb","index":5,"n_rows":20,"n_cols":15,"rows_kept":20,"cut":false,"hidden":true,"merged":[[19,5,19,6],[19,7,19,8],[17,7,17,8],[15,7,15,8],[16,7,16,8],[18,5,18,6],[18,7,18,8],[12,0,13,1],[15,5,15,6],[16,5,16,6],[17,5,17,6],[10,2,10,3],[11,2,11,3],[0,0,0,8],[1,0,1,8],[5,0,5,8],[2,4,2,5],[7,2,7,3],[6,2,6,3],[9,2,9,3],[3,4,3,5],[2,0,2,2],[3,0,3,2],[8,2,8,3]]}
["ÖDEME EMRİ BELGESİ",null,null,null,null,null,null,null,null,{"$f":"List!F1","v":1},"S. No","Genel Müdürlük","Zamlar ve Tazminatlar","Sosyal Haklar","Ödenekler"]
["(ÖRNEKTİR)",null,null,null,null,null,null,null,null,null,1,"13.67-İl/İlçe Milli Eğitim Müdürlükleri","98.900.9006.306.13.67.01.01.01.20.01","98.900.9006.306.13.67.01.01.01.40.01","98.900.9006.306.13.67.01.01.01.30.01"]
["Adı Soyadı/Unvanı",null,null,"VKN/TCKN","IBAN No",null,"Brüt Tutar","Kesinti Tutarı","Net Tutar",null,2,"13.68-Okul Öncesi Okulları","40.149.422.291.13.68.01.01.01.20.01","40.149.422.291.13.68.01.01.01.40.01","40.149.422.291.13.68.01.01.01.30.01"]
[{"$f":"IF(J1=2,Bordro!M4,Banka!C5)","v":{"$error":"#N/A"}},null,null,{"$f":"IF(J1=2,Bordro!M5,Banka!B5)","v":22807836354},{"$f":"IF(J1=2,Bordro!O5,Banka!E5)","v":{"$error":"#N/A"}},null,{"$f":"Hesap!AA27","v":0},{"$f":"Hesap!AD27","v":0},{"$f":"Hesap!AE27","v":0},null,3,"13.68-İlk ve Orta Okullar","40.149.423.292.13.68.01.01.01.20.01","40.149.423.292.13.68.01.01.01.40.01 ","40.149.423.292.13.68.01.01.01.30.01 "]
[null,null,null,null,null,null,null,null,null,null,4,"13.69-Genel Ortaöğretim Okulları","37.147.409.276.13.69.01.01.01.20.01","37.147.409.276.13.69.01.01.01.40.01","37.147.409.276.13.69.01.01.01.30.01"]
["ÖDEME EMRİ",null,null,null,null,null,null,null,null,null,5,"13.70-Mesleki ve Teknik Eğitim Okulları","37.266.410.8453.13.70.01.01.01.20.01","37.266.410.8453.13.70.01.01.01.40.01","37.266.410.8453.13.70.01.01.01.30.01"]
["S. No","Ödeme Kalemi","Bütçe Tertibi",null,"Brüt Tutar","Kesinti\nTürü","Kesinti Alt\nTürü","Kes. Yapılan\nKişi/Kurum","Tutar",null,6,"13.71-İmam Hatip Ortaokulları","40.265.411.279.13.71.01.01.01.20.01","40.265.411.279.13.71.01.01.01.40.01","40.265.411.279.13.71.01.01.01.30.01"]
[1,"Zamlar ve Tazminatlar",{"$f":"M12","v":"98.900.9006.306.13.67.01.01.01.20.01"},null,{"$f":"Hesap!G27+Hesap!K27+Hesap!O27+Hesap!W27+Hesap!X27","v":0},null,null,null,null,null,7,"13.71-İmam Hatip Liseleri","37.265.411.278.13.71.01.01.01.20.01","37.265.411.278.13.71.01.01.01.40.01","37.265.411.278.13.71.01.01.01.30.01"]
[2,"Ödenekler",{"$f":"O12","v":"98.900.9006.306.13.67.01.01.01.30.01"},null,{"$f":"Hesap!S27","v":0},null,null,null,null,null,null,"13.72-Hayatboyu Öğretime Bağlı Kurumlar","51.146.407.274.13.72.01.01.01.20.01","51.146.407.274.13.72.01.01.01.40.01","51.146.407.274.13.72.01.01.01.30.01"]
[3,"Sosyal Haklar",{"$f":"N12","v":"98.900.9006.306.13.67.01.01.01.40.01"},null,{"$f":"Hesap!Y27+Hesap!Z27","v":0},null,null,null,null,null,null,"13.73-Özel Eğitim Okulları","6.145.399.266.13.73.01.01.01.20.01","6.145.399.266.13.73.01.01.01.40.01","6.145.399.266.13.73.01.01.01.30.01"]
[4,null,null,null,null,"Vergi","Gelir Vergisi",{"$f":"Bordro!M3","v":"13.67-İl/İlçe Milli Eğitim Müdürlükleri"},{"$f":"Hesap!AB27","v":0},null,null,"13.73-Özel Eğitim Kurumları","6.145.400.267.13.73.01.01.01.20.01","6.145.400.267.13.73.01.01.01.40.01","6.145.400.267.13.73.01.01.01.30.01"]
[5,null,null,null,null,"Vergi","Damga Vergisi",{"$f":"Bordro!M3","v":"13.67-İl/İlçe Milli Eğitim Müdürlükleri"},{"$f":"Hesap!AC27","v":0},null,"Seç",{"$f":"Bordro!M3","v":"13.67-İl/İlçe Milli Eğitim Müdürlükleri"},{"$f":"IF(L12=0,\"\",IF(L12=L2,M2,IF(L12=L3,M3,IF(L12=L4,M4,IF(L12=L5,M5,IF(L12=L6,M6,IF(L12=L7,M7,IF(L12=L8,M8,IF(L12=L9,M9,IF(L12=L10,M10,IF(L12=L11,M11,\"\")))))))))))","v":"98.900.9006.306.13.67.01.01.01.20.01"},{"$f":"IF(L12=0,\"\",IF(L12=L2,N2,IF(L12=L3,N3,IF(L12=L4,N4,IF(L12=L5,N5,IF(L12=L6,N6,IF(L12=L7,N7,IF(L12=L8,N8,IF(L12=L9,N9,IF(L12=L10,N10,IF(L12=L11,N11,\"\")))))))))))","v":"98.900.9006.306.13.67.01.01.01.40.01"},{"$f":"IF(L12=0,\"\",IF(L12=L2,O2,IF(L12=L3,O3,IF(L12=L4,O4,IF(L12=L5,O5,IF(L12=L6,O6,IF(L12=L7,O7,IF(L12=L8,O8,IF(L12=L9,O9,IF(L12=L10,O10,IF(L12=L11,O11,\"\")))))))))))","v":"98.900.9006.306.13.67.01.01.01.30.01"}]
["Ödeme Emri\nToplam Tutarları",null,"Brüt Tutar","Kesinti Toplamı","Net Tutar","İndirim\nTutarı","Artırım\nTutarı","Mahsup\nEdilen Tutar","Ödenecek\nTutar"]
[null,null,{"$f":"E8+E9+E10","v":0},{"$f":"I11+I12","v":0},{"$f":"C14-D14","v":0},0,0,0,{"$f":"E14","v":0}]
[]
[null,null,null,null,null,"Düzenleyen",null,"Onaylayan"]
[null,null,null,null,null,{"$f":"TODAY()","v":"2024-04-15"},null,{"$f":"F17","v":"2024-04-15"}]
[]
[null,null,null,null,null,{"$f":"Bordro!V3","v":"Ziya KILINÇ"},null,{"$f":"Bordro!V4","v":"Abdurrahman BUCAK"}]
[null,null,null,null,null,{"$f":"Bordro!Z3","v":"Şef"},null,{"$f":"Bordro!Z4","v":"Şube Müdürü"}]